Cogmind - Beta 16 @@@ ROGUE MODE // 2026.01.13 @ 11:32:13 Player: k1ll3rb0t Result: Destroyed by MAIN.C with Improved Heavy Machine Gun Performance ------------- Evolutions (9) 4500 Regions Visited (32) 6400 Robots Destroyed (552) 2760 Value Destroyed (29643) 29643 Prototype IDs (70) 1400 Alien Tech Used (7) 1400 Bonus (19828) 19828 TOTAL SCORE: 65931 Bonus ------- High Alert Combat Kills 4351 Follower Combat Kills 2571 Entered Garrisons 400 Entered DSFs 500 Network Hubs Disabled 200 Met Data Miner 300 Acquired ECA 300 Met Warlord at Base 500 MAIN.C Attacked Warlord 500 Warlord Defense Kills 340 Built Enhanced Grunts 300 Met R17 at Cetus 500 Met R17 at Research 2000 Destroyed MAIN.C Guards 500 Met MAIN.C 5000 Destroyed MAIN.C Shell 5000 Friendly Fire -3434 Cogmind --------- Core Integrity 0/1600 Matter 300/300 Energy 100/100 System Corruption 19% Temperature Cool (0) Movement Core (50) Location -1/Command Parts ------- > --- POWER (2) -------- (None) > --- PROPULSION (7) --- (None) > --- UTILITY (13) ----- (None) > --- WEAPON (3) ------- (None) > --- INVENTORY (5) ---- Antimatter Reactor Huge Storage Unit Energy Well (350) Dimensional Node Initializer Peak State ------------ > --- POWER ------------ Vortex Chain Reactor > --- PROPULSION ------- Centrium Heavy Treads High-density Centrium Heavy Treads High-density Centrium Heavy Treads > --- UTILITY ---------- Advanced Cryofiber Web Experimental Heat Sink Huge Storage Unit IFF Parser Advanced Terrain Scan Processor Experimental Targeting Computer Advanced Particle Charger Centrium Heavy Armor Plating Phase Armor Experimental Force Field > --- WEAPON ----------- Heavy Quantum Rifle Sigix Broadsword > --- INVENTORY -------- Quantum Reactor Vortex Chain Reactor Centrium Heavy Treads High-density Centrium Heavy Treads Advanced Energy Well Advanced Matter Compressor Long-range Terrain Scanner Quantum Capacitor Graphene Brace Advanced EM Shield Long-range Tractor Beam Dimensional Node Initializer Subatomic Replicator HERF Cannon Matter Neutralizer Matter Neutralizer Nova Cannon Gamma Bomb Array Scatter Rocket Array Scatter Rocket Array Vortex Lance [Rating: 233] Favorites ----------- Power Quantum Reactor Engine Light Ion Engine Power Core Neutrino Core Reactor Quantum Reactor Propulsion Light Treads Treads Light Treads Leg Aluminum Leg Wheel Wheel Hover Unit Antigrav System Utility Huge Storage Unit Device Advanced Heat Sink Storage Huge Storage Unit Processor Experimental Targeting Computer Hackware Hacking Suite Protection Centrium Medium Armor Plating Artifact Phase Armor Weapon Gatling Laser Energy Gun Gatling Laser Energy Cannon Enhanced Nova Cannon Ballistic Gun Improved Assault Rifle Ballistic Cannon Mass Driver Launcher Long-range Missile Launcher Special Weapon Mining Laser Impact Weapon Powered Hammer Slashing Weapon Power Sword Piercing Weapon Vortex Lance Build | -11 -10 -9 -9 -8 -8 -8 -8 -7 -7 -7 -7 -6 -6 -6 -6 -5 -5 -5 -5 -5 -4 -4 -4 -4 -4 -4 -3 -3 -2 -2 -1 -1 ------- Run | Yrd Mat Mat Min Mat Gar Mat Gar Fac Was Fac DSF Fac Low Low Dat Pro Fac Upp Upp War Pro Fac Ext Cet Arc Hub Res Qua Res Tes Acc Com Slots Evolved 18 | . . 2 . 2 . . . 2 . . . 2 . . . . 2 . . . . 2 . . . . 2 . 2 . 2 . Power 1 | . . . . . . . . . . . . . . . . . . . . . . 1 . . . . . . . . . . Propulsion 5 | . . 1 . 1 . . . . . . . 1 . . . . . . . . . 1 . . . . . . . . 1 . Utility 11 | . . 1 . . . . . 2 . . . 1 . . . . 2 . . . . . . . . . 2 . 2 . 1 . Weapon 1 | . . . . 1 . . . . . . . . . . . . . . . . . . . . . . . . . . . . Parts Attached 444 | 8 12 21 4 16 10 1 15 13 12 . 1 7 2 5 . 2 65 8 2 29 9 29 12 11 6 8 17 36 18 16 15 34 Power 47 | 1 1 4 . 2 2 1 2 1 1 . . . . 1 . . 7 1 . 3 2 2 1 1 . 1 2 4 3 . 1 3 Engine 14 | 1 1 3 . 2 1 1 . . . . . . . . . . 3 . . 1 . . . . . . 1 . . . . . Core 12 | . . 1 . . 1 . 2 1 . . . . . . . . 3 1 . 1 . 1 1 . . . . . . . . . Reactor 21 | . . . . . . . . . 1 . . . . 1 . . 1 . . 1 2 1 . 1 . 1 1 4 3 . 1 3 Propulsion 111 | 2 6 3 1 7 2 . 6 4 4 . . 1 . 3 . . 21 1 . 6 3 7 2 4 1 . 4 5 3 1 6 8 Treads 77 | . 2 2 . 6 2 . 6 2 4 . . 1 . 3 . . 5 . . 2 3 6 2 4 1 . 4 5 2 1 6 8 Leg 5 | 2 2 . . . . . . . . . . . . . . . 1 . . . . . . . . . . . . . . . Wheel 28 | . 2 1 1 1 . . . 2 . . . . . . . . 14 1 . 4 . 1 . . . . . . 1 . . . Hover 1 | . . . . . . . . . . . . . . . . . 1 . . . . . . . . . . . . . . . Flight . | . . . . . . . . . . . . . . . . . . . . . . . . . . . . . . . . . Utility 174 | 3 2 4 1 1 2 . 2 7 4 . . 5 1 . . 2 25 3 2 13 2 12 8 3 4 5 6 18 6 11 6 16 Device 97 | 2 1 2 . 1 . . 1 4 3 . . 3 1 . . 1 13 2 1 7 1 7 3 . 4 2 5 11 2 11 1 8 Storage 11 | 1 1 1 . . . . . . . . . . . . . . 2 . . . . 2 2 . . 2 . . . . . . Processor 20 | . . . . . . . . 1 . . . . . . . . 2 1 1 4 . . 2 . . . . 1 3 . 3 2 Hackware 10 | . . . . . . . . . . . . 1 . . . . 4 . . . . 1 1 . . 1 . . 1 . 1 . Protection 34 | . . 1 1 . 2 . 1 2 1 . . 1 . . . 1 4 . . 2 1 2 . 3 . . 1 4 . . 1 6 Artifact 2 | . . . . . . . . . . . . . . . . . . . . . . . . . . . . 2 . . . . Weapon 112 | 2 3 10 2 6 4 . 5 1 3 . 1 1 1 1 . . 12 3 . 7 2 8 1 3 1 2 5 9 6 4 2 7 Energy Gun 35 | 1 2 2 . 2 3 . 2 1 2 . . . . 1 . . 5 1 . . 2 3 1 2 1 . 1 1 . 1 . 1 Energy Cannon 28 | . . 1 . 2 . . . . 1 . . . 1 . . . 1 . . . . 3 . . . 2 4 2 5 2 2 2 Ballistic Gun 16 | 1 . 5 . 1 1 . 1 . . . . . . . . . . 1 . 4 . . . 1 . . . 1 . . . . Ballistic Cannon 11 | . . 1 . . . . . . . . 1 . . . . . 3 . . 1 . 1 . . . . . 1 . . . 3 Launcher 12 | . . 1 1 . . . 2 . . . . . . . . . 2 1 . . . . . . . . . 2 1 1 . 1 Special Weapon 3 | . 1 . . . . . . . . . . . . . . . 1 . . 1 . . . . . . . . . . . . Impact Weapon 2 | . . . . 1 . . . . . . . . . . . . . . . . . . . . . . . 1 . . . . Slashing Weapon 3 | . . . 1 . . . . . . . . 1 . . . . . . . . . . . . . . . 1 . . . . Piercing Weapon 2 | . . . . . . . . . . . . . . . . . . . . 1 . 1 . . . . . . . . . . Special Melee Weapon . | . . . . . . . . . . . . . . . . . . . . . . . . . . . . . . . . . Unidentified Prototypes 61 | . . 2 . 3 . . . . . . . . . . . . 5 . . 13 . 4 1 4 . 2 4 17 1 4 . 1 Corrupted Parts 3 | . . . . . . . . . . . . . . . . . . . . . . . 1 1 1 . . . . . . . System Corruption 17 | . . . . . . . . . . . . . . . . . . . . . . . 5 8 4 . . . . . . . Parts Lost 153 | . 5 1 2 2 . . 9 1 4 . . . . 5 . . 45 1 . 4 5 10 . 1 . 2 3 4 9 4 . 36 Power 17 | . 1 . . 1 . . 2 . . . . . . . . . 5 . . . . . . . . 1 . 2 1 . . 4 Propulsion 57 | . . 1 1 1 . . 4 . 2 . . . . 2 . . 21 . . 4 . 7 . 1 . . 2 . 2 . . 9 Utility 53 | . 1 . 1 . . . 1 1 1 . . . . 1 . . 13 1 . . 3 1 . . . 1 1 2 4 4 . 17 Weapon 26 | . 3 . . . . . 2 . 1 . . . . 2 . . 6 . . . 2 2 . . . . . . 2 . . 6 Highest Loss Streak 32 | . 2 1 2 1 . . 2 1 4 . . . . 3 . . 9 5 . 3 2 6 . 1 . 1 3 2 4 3 . 32 To Critical Strikes 2 | . . . . . . . . . . . . . . . . . . . . . . . . 1 . . 1 . . . . . Average Backups 22 | 4 10 23 24 24 24 24 23 24 21 21 21 21 21 22 23 23 22 24 25 23 22 21 21 21 20 20 22 21 20 21 22 21 Power 1 | . 1 2 1 . 1 . . 1 1 1 1 1 1 1 1 1 1 1 2 1 2 1 . 1 1 . . . 1 2 2 1 Propulsion 3 | 2 5 5 5 4 5 5 4 5 3 3 2 1 2 . 1 1 4 4 5 4 3 2 2 2 3 3 2 2 1 2 3 4 Utility 9 | . 1 5 8 9 10 12 12 9 10 10 12 13 12 13 14 13 8 7 7 8 7 9 9 8 9 10 11 8 6 6 7 7 Weapon 7 | . 1 10 9 8 7 7 6 8 7 7 5 5 5 5 6 6 6 9 9 9 8 8 9 8 6 7 7 8 8 9 8 6 Tool/Special . | . . . . . . . . . . . . . . . . . . . . . . . . . . . . . . . . . Unused Backups 86 | . . 5 . 5 2 2 . 3 4 . 1 1 1 3 . 1 11 4 . 4 1 4 3 4 1 2 5 5 . 5 1 8 Power 14 | . . . . . . 1 . . . . . . . 2 . . 1 1 . 1 . 1 . 2 1 . . . . 2 . 2 Propulsion 11 | . . . . . . . . . 1 . 1 . 1 . . . 5 . . 1 1 1 . . . . . . . . . . Utility 38 | . . . . 5 . 1 . 3 1 . . 1 . . . 1 2 3 . . . 2 3 2 . 1 3 5 . 1 1 3 Weapon 22 | . . 5 . . 2 . . . 2 . . . . 1 . . 3 . . 2 . . . . . 1 2 . . 2 . 2 Tool/Special 1 | . . . . . . . . . . . . . . . . . . . . . . . . . . . . . . . . 1 Average Slot Usage (%) 90 | . 99 99 99 99 100 100 99 99 92 92 92 92 92 92 90 92 88 96 98 99 99 87 81 84 88 88 79 77 75 81 88 82 Engine 1 | . 13 7 11 9 8 9 2 . . . . . . . . . 1 . . 3 . . . . . . . . . . . . Core 1 | . . 3 . . . . 6 7 1 . . . . . . . . 5 5 . . . . 1 . . . . . . . . Reactor 4 | . . . . . . . . . 5 7 7 6 6 6 6 6 2 . . . 5 4 5 8 10 10 7 8 4 8 8 7 Treads 19 | . 2 23 24 18 18 18 24 18 22 23 23 26 26 25 26 26 13 5 5 5 28 26 23 17 21 21 18 18 12 12 20 18 Wheel 5 | . 1 9 7 17 18 18 10 11 1 . . . . . . . 9 22 23 22 . 2 . . . . . . . . . . Device 19 | . 13 13 11 9 3 17 10 22 23 23 23 23 25 25 26 27 25 29 29 23 18 14 14 15 19 14 19 23 25 21 27 23 Storage 6 | . 14 11 11 9 9 9 9 7 7 7 7 6 6 6 6 6 5 5 5 5 5 5 5 5 5 5 4 4 4 4 4 3 Processor 5 | . . . . . . . . 4 . . . . . . . . 3 7 11 11 11 10 10 10 10 10 9 3 9 13 13 11 Hackware 1 | . . . . . . . . . . . . 3 6 6 6 4 . . . . . . . . . 2 . . 1 3 3 3 Protection 4 | . . 8 10 9 14 . 7 2 6 7 7 4 . . . . 2 . . 4 9 5 5 9 5 8 4 5 3 . . 2 Energy Gun 7 | . 16 5 16 1 3 22 22 17 17 23 18 18 14 7 4 6 8 . . . 1 3 9 6 11 13 4 1 1 2 . . Energy Cannon 3 | . . 7 . 8 7 . . . . . . . 2 6 4 6 3 . . . . 5 . . . 1 7 4 6 10 11 10 Ballistic Gun 2 | . 7 5 3 15 15 . . . . . . . . . . . . . . 2 7 . . 6 . . . . . . . . Ballistic Cannon 1 | . . 2 . . . . . . . . . . . 1 . 3 1 11 9 11 6 2 4 . . . . . . . . . Slashing Weapon 1 | . . . 1 . . . . . . . . . 1 3 6 2 1 3 5 2 . 2 . . 3 . . 2 1 . . . Peak Build Rating 233 | 9 10 22 20 30 35 35 36 41 59 59 59 70 69 72 71 73 88 71 73 114 118 141 144 162 163 164 169 223 233 213 207 208 Average Rating 101 | 5 9 16 19 26 31 32 34 38 54 59 57 66 68 70 69 71 72 65 69 81 114 127 140 154 155 160 160 183 204 204 201 190 On Entrance 87 | . 9 8 18 20 30 35 33 35 38 59 59 59 69 68 71 71 72 63 68 73 111 117 134 136 162 161 153 161 223 190 192 199 Avg Prop Armor Cover (%) 12 | . . 15 8 13 13 17 22 18 16 . . . . . . . 11 6 6 5 11 15 . . . 3 . 6 . 4 . 5 Naked Turns 4 | . . . . . . . . . . . . . . . . . . . . . . . . . . . . . . . . 4 Heaviest Build 213 | 12 29 100 95 108 110 105 109 116 124 121 125 122 121 132 117 125 147 129 123 143 145 176 164 160 155 164 170 212 213 202 175 195 Greatest Support 288 | 20 40 60 60 32 40 28 28 26 110 110 110 130 130 138 138 138 150 40 40 46 139 186 200 230 217 217 218 270 260 260 288 260 Greatest Overweight (x) 13 | . 1 6 2 3 3 3 6 7 5 1 1 . . . . . 11 4 3 13 3 5 . . . . . 1 1 1 . 3 Average Overweight (x) 1 | . . 1 1 2 2 3 5 5 1 1 1 . . . . . 3 2 2 3 . 1 . . . . . . . . . . Largest Inventory Capacity 25 | 8 15 25 25 25 25 25 25 25 25 25 25 25 25 25 25 25 25 25 25 25 25 25 25 25 25 25 25 25 25 25 25 25 Average Capacity 24 | 6 14 24 25 25 25 25 25 25 25 25 25 25 25 25 25 25 25 25 25 25 25 25 25 25 25 25 25 25 25 25 25 24 Most Carried 25 | 8 15 25 25 25 25 25 25 25 25 25 25 25 25 25 25 25 25 25 25 25 25 25 25 25 25 25 25 25 25 25 25 25 Average Carried 23 | 4 10 24 24 24 24 24 23 24 24 25 24 24 24 24 25 24 22 24 24 24 23 24 24 24 24 24 24 24 24 24 24 23 Final Capacity 25 | 8 15 25 25 25 25 25 25 25 25 25 25 25 25 25 25 25 25 25 25 25 25 25 25 25 25 25 25 25 25 25 25 5 Final Carried 25 | 8 15 25 23 25 25 25 25 25 25 25 25 25 25 25 25 25 24 25 25 25 25 25 25 25 25 25 25 25 24 25 25 4 Class Distribution -------------------- 28% | Scavenger-Tank 22% | Scavenger-Mutant 19% | Scavenger-Gunner 9% | Mutant 8% | Tank 3% | Commander-Tank Dominant Class ---------------- Mutant | -10/Materials Mutant | -9/Materials Scavenger-Mutant | -9/Mines Tank | -8/Materials Scavenger-Tank | -8/Garrison Gunner | -8/Materials Tank | -8/Garrison Scavenger-Mutant | -7/Factory Scavenger-Tank | -7/Waste Scavenger-Tank | -7/Factory Scavenger-Tank | -7/DSF Scavenger-Tank | -6/Factory Scavenger-Tank | -6/Lower Caves Scavenger-Mutant | -6/Lower Caves Scavenger-Mutant | -6/Data Miner Scavenger-Tank | -5/Proximity Caves Scavenger-Tank | -5/Factory Scavenger-Mutant | -5/Upper Caves Scavenger-Mutant | -5/Upper Caves Scavenger-Mutant | -5/Warlord Scavenger-Gunner | -4/Proximity Caves Scavenger-Mutant | -4/Factory Scavenger-Tank | -4/Extension Commander-Tank | -4/Cetus Commander-Mutant | -4/Archives Scavenger-Tank | -4/Hub_04(d) Scavenger-Gunner | -3/Research Scavenger-Mutant | -3/Quarantine Tank | -2/Research Scavenger-Skirmisher | -2/Testing Scavenger-Gunner | -1/Access Scavenger-Gunner | -1/Command Resources | -11 -10 -9 -9 -8 -8 -8 -8 -7 -7 -7 -7 -6 -6 -6 -6 -5 -5 -5 -5 -5 -4 -4 -4 -4 -4 -4 -3 -3 -2 -2 -1 -1 ----------- Run | Yrd Mat Mat Min Mat Gar Mat Gar Fac Was Fac DSF Fac Low Low Dat Pro Fac Upp Upp War Pro Fac Ext Cet Arc Hub Res Qua Res Tes Acc Com Matter Collected 17411 | 285 106 767 44 561 742 90 679 226 536 . 76 267 148 215 . 84 1868 938 282 883 1279 1863 495 412 167 258 428 994 1092 668 219 739 Remotely 2053 | . . . . . . . . . . . . . . . . . 90 137 43 182 325 782 . . . . . . 494 . . . Salvage Created 28886 | 28 422 1186 162 729 1214 285 1315 172 1805 . 288 680 148 597 . 126 3380 518 350 154 1622 1620 1138 452 314 1356 388 2291 1564 1438 506 2638 Parts 1198 | 5 23 72 10 50 51 19 54 6 33 . 11 30 6 20 . 4 155 17 2 9 57 54 37 25 27 35 18 106 52 77 49 84 Haulers Intercepted 15 | . . 3 . 3 . 1 . . . . . 1 . . . . 4 . . . . 1 . . . 1 1 . . . . . Recyclers Shooed 11 | . 2 2 . . . . . . . . . . . . . 1 3 . . . . 2 . . . . 1 . . . . . Parts Field Recycled . | . . . . . . . . . . . . . . . . . . . . . . . . . . . . . . . . . Retrieved Matter . | . . . . . . . . . . . . . . . . . . . . . . . . . . . . . . . . . Parts Self-Destructed 84 | . . . . . . . . . . . . . 3 18 . 2 . 1 . . 60 . . . . . . . . . . . Prevented 4 | . . . . . . . . . . . . . . 4 . . . . . . . . . . . . . . . . . . Parts Restored . | . . . . . . . . . . . . . . . . . . . . . . . . . . . . . . . . . Kills | -11 -10 -9 -9 -8 -8 -8 -8 -7 -7 -7 -7 -6 -6 -6 -6 -5 -5 -5 -5 -5 -4 -4 -4 -4 -4 -4 -3 -3 -2 -2 -1 -1 ------- Run | Yrd Mat Mat Min Mat Gar Mat Gar Fac Was Fac DSF Fac Low Low Dat Pro Fac Upp Upp War Pro Fac Ext Cet Arc Hub Res Qua Res Tes Acc Com Combat Hostiles Destroyed 437 | . 12 20 8 16 32 4 33 4 5 . 8 7 3 11 . 1 68 7 . 2 28 21 14 5 . 16 3 28 27 19 11 24 Melee 8 | . . . 2 . . . . . . . . . . . . . 1 . . . . 1 . . . . . 3 1 . . . Guns 158 | . 12 6 2 7 12 3 24 2 . . 4 7 3 2 . . 26 . . 2 13 . 8 5 . 16 2 2 . . . . Cannons 129 | . . 12 . 5 3 . . . . . . . . 7 . 1 9 1 . . 10 15 6 . . . . 14 11 15 6 14 AOE 109 | . . 2 4 4 16 1 6 . 3 . 4 . . . . . 28 6 . . 5 4 . . . . . 2 10 3 5 6 Classes Destroyed 30 | 1 2 6 2 2 2 . 4 1 1 . 1 . . . . . 1 1 . 1 . 1 . . . . . 2 1 1 . . Worker 16 | . . 1 . 1 . . . . . . . 1 . . . . 5 . . . . . . . . 2 1 1 . 1 1 2 Builder 20 | . . . 1 . . 1 . . . . . 2 . . . . 9 . . . . 2 1 . . 1 . . . 2 1 . Tunneler 10 | 2 . . . . . . . . . . . 2 . . . . 3 . . . . . 2 . . . 1 . . . . . Hauler 15 | . . 3 . 3 . 1 . . . . . 1 . . . . 4 . . . . 1 . . . 1 1 . . . . . Recycler 12 | . . 3 . . . . . . . . . 1 . . . . 1 . . . . 3 1 . . 1 . 1 . 1 . . Mechanic 4 | . . . . . . . 1 . . . . . . . . . 2 . . . . 1 . . . . . . . . . . Operator 13 | . . 1 . 1 . . . . . . . . . . . . . . . . . . . . 9 1 . . . . 1 . Watcher 9 | . . . . 2 . . . . . . . . . . . . 2 . . . . . 1 . . 3 . . . . . 1 Swarmer 77 | . 3 3 4 9 11 . . . . . . . 3 1 . . 16 1 . . 1 5 2 . . . . . 3 . 5 10 Cutter 4 | . . . . . 1 . 3 . . . . . . . . . . . . . . . . . . . . . . . . . Saboteur 3 | . . . . . . . . . . . . . . . . . 2 . . . . . . . . . . . . 1 . . Grunt 148 | . 9 12 1 2 13 2 12 . . . 3 2 . 8 . . 26 1 . 1 17 8 2 . . 7 . 9 5 7 . 1 Brawler 7 | . . . . . 2 . . . . . 1 . . . . . . 1 . . 2 . . . . . . 1 . . . . Duelist 10 | . . 1 1 . . . 1 . . . . . . 1 . . 1 3 . . 1 . . . . . . . . 1 . . Protector 2 | . . . . . . . 2 . . . . . . . . . . . . . . . . . . . . . . . . . Researcher 1 | . . . . . . . . . . . . . . . . . . . . . . . . . . . . . . 1 . . Sentry 43 | . . 4 . 4 5 2 5 1 . . 1 2 . 1 . . 4 1 . . 2 1 7 . . 2 1 . . . . . Demolisher 3 | . . . . . . . 2 . . . . . . . . . . . . . . . . . . . . . 1 . . . Specialist 10 | . . . . . . . . . . . 1 . . . . . 3 . . . . . . . . 2 . 2 . 2 . . Hunter 31 | . . . . 1 . . 2 . . . 2 1 . . . . 4 . . . 4 2 2 . . 2 2 2 7 . . . Programmer 66 | . . . . . . . 6 2 . . . 2 . . . 1 12 . . . 1 3 . . . 2 . 12 3 8 6 8 Heavy 2 | . . . . . . . . 1 . . . . . . . . . . . . . . . . . 1 . . . . . . Behemoth 3 | . . . . . . . . . . . . . . . . . . . . . . 2 1 . . . . . . . . . Compactor 5 | . . . . . . . . . 5 . . . . . . . . . . . . . . . . . . . . . . . Cetus Guard 5 | . . . . . . . . . . . . . . . . . . . . . . . . 5 . . . . . . . . M Guard 2 | . . . . . . . . . . . . . . . . . . . . . . . . . . . . . . . . 2 Combat Programmer 2 | . . . . . . . . . . . . . . . . . . . . . . . . . . . . . . . . 2 Striker 2 | . . . . . . . . . . . . . . . . . . . . . . . . . . . . . 2 . . . Executioner 7 | . . . . . . . . . . . . . . . . . . . . 1 . . . . . . . . 6 . . . Alpha 7 1 | . . . . . . . . . . . . . . . . . . . . . . . . . . . . 1 . . . . Fortress 1 | . . . . . . . . . . . . . . . . . . . . . . . . . . . . 1 . . . . Decomposer 11 | . . . . . . . . . . . . . 5 . . . . 5 1 . . . . . . . . . . . . . Packrat 5 | . . . . . . . . . . . . . . . . 1 . . 4 . . . . . . . . . . . . . Samaritan 6 | . . . . . . . . . . . . . . . . . . 5 1 . . . . . . . . . . . . . Assembled 2 | . . . 2 . . . . . . . . . . . . . . . . . . . . . . . . . . . . . Wasp 5 | . . . . . . . . . 5 . . . . . . . . . . . . . . . . . . . . . . . Thug 9 | . . . . . . 1 . . 7 . . . . . . . . . . . . . 1 . . . . . . . . . Savage 2 | . . . . . . . . . 2 . . . . . . . . . . . . . . . . . . . . . . . Guerrilla 1 | . . . . . . . . . . . . . . . . . . . . . . . . 1 . . . . . . . . Best Kill Streak 15 | 2 5 7 4 10 6 3 4 1 1 . 4 3 3 11 . 1 15 7 . 2 7 9 4 4 3 8 2 9 9 8 6 6 Combat Bots Only 12 | . 5 5 4 6 6 1 4 1 1 . 4 2 3 11 . 1 12 7 . 2 7 7 3 4 . 7 2 9 9 8 5 6 Max Kills in Single Turn 4 | 1 1 3 2 3 4 3 2 1 1 . 2 2 3 1 . 1 3 4 1 1 3 2 2 2 1 2 1 2 3 3 3 4 Gunslinging 1 | . . . . . . . 1 . . . . . 1 . . . . . . . . . . . . 1 . . . . . . Exploded 4 | . . 2 2 3 4 1 1 . 1 . 2 . . . . . 3 4 . . 3 2 . . . . . 2 3 2 3 4 Melee 1 | . . . 1 . . . . . . . . . . . . . 1 . . . . 1 . . . . . 1 1 . . . Uniques/NPCs Destroyed 1 | . . . . . . . . . . . . . . . . . . . . . . . . . . . . . . . . 1 MAIN.C Shell (-1/Command) Combat | -11 -10 -9 -9 -8 -8 -8 -8 -7 -7 -7 -7 -6 -6 -6 -6 -5 -5 -5 -5 -5 -4 -4 -4 -4 -4 -4 -3 -3 -2 -2 -1 -1 -------- Run | Yrd Mat Mat Min Mat Gar Mat Gar Fac Was Fac DSF Fac Low Low Dat Pro Fac Upp Upp War Pro Fac Ext Cet Arc Hub Res Qua Res Tes Acc Com Hostile Shots Fired 3300 | . 94 87 14 65 72 9 116 28 2 . 38 66 9 71 . 6 504 17 1 62 151 217 47 33 . 238 95 364 318 162 44 370 Missed 917 | . 22 24 2 19 25 1 32 8 . . 9 30 1 9 . 2 144 5 . 19 52 52 17 14 . 88 27 107 72 30 17 89 Hits 2383 | . 72 63 12 46 47 8 84 20 2 . 29 36 8 62 . 4 360 12 1 43 99 165 30 19 . 150 68 257 246 132 27 281 Melee 34 | . . . 3 . 1 . 7 . 2 . . . . 1 . . 4 . . . 3 . . . . . . 4 5 4 . . Projectile 2349 | . 72 63 9 46 46 8 77 20 . . 29 36 8 61 . 4 356 12 1 43 96 165 30 19 . 150 68 253 241 128 27 281 AOE 20 | . . . . . . . 7 . . . . . . . . . 1 . . . . . . . . . . . 2 . . 10 Critical Strikes 134 | . 2 1 2 1 6 . 5 2 . . . . . 3 . . 16 . . 2 4 7 1 5 . 8 2 26 13 5 3 20 Actively Blocked 52 | . . . . . . . . . . . . . . . . . . . . . . . . . . . . 19 13 1 2 17 Part Disruptions 13 | . . . 1 . . . . . . . . . . . . . 1 . . . . . . . . 1 . 1 . 2 . 7 Damage Taken 46210 | . 818 819 227 486 631 154 1522 338 294 . 211 530 98 1129 . 82 6861 279 18 868 1814 2815 445 296 12 1918 1187 4129 5312 2732 565 9620 Core 5194 | . 197 66 21 40 95 15 135 28 72 . 6 27 . 107 . . 596 23 18 79 112 175 41 14 . 91 83 368 683 499 38 1565 Absorbed by Shields 5660 | . . . . . . . . 48 . . 120 28 28 65 . . 274 . . 143 265 1020 432 214 13 383 43 362 1120 351 126 625 Reduced by Siege Mode 798 | . . . . . . . . . . . . 6 . 47 . . 131 . . . . . . . . 17 . 34 300 204 15 44 Redirected to Core 955 | . . . . . . . . . . . . . . . . . . . . . . . . . . . . 206 288 461 . . Redirected to Shielding 70 | . . . . . 25 . 45 . . . . . . . . . . . . . . . . . . . . . . . . . Ignored by Resistances 1515 | . . . . . 34 . . 51 . . . . . 13 . . 53 . . . . . . . . . . 310 83 185 . 786 Regen/Repaired (Parts) 2083 | . . . . . . . . . 108 . 71 58 . . . . 718 . . 233 . . . . . . . 739 156 . . . Core Remaining (%) 58 | 100 21 . 78 . . . 48 . . . 84 . . . . 84 . . . . 17 . . . . 72 . 65 . 18 . . Volleys Fired 1445 | 5 52 56 10 45 109 7 57 9 77 . 10 20 9 39 . 26 136 6 . 20 60 58 33 12 3 57 25 119 49 68 53 215 Largest 3 | 2 2 2 2 3 3 3 3 3 3 . 3 3 3 3 . 3 3 3 . 3 3 3 3 3 1 3 1 1 3 3 2 3 Hottest 370 | 70 115 90 90 121 240 240 240 240 241 . 241 241 250 250 . 207 268 141 . 141 157 301 243 103 94 298 110 105 345 337 214 370 Shots Fired 2507 | 10 86 111 17 96 200 15 135 25 130 . 24 58 19 87 . 31 292 7 1 38 151 106 88 31 2 131 25 117 90 109 54 221 Gun 1288 | 10 81 52 14 51 123 12 123 25 117 . 18 58 12 28 . 3 178 . . 21 85 24 59 30 2 109 10 6 9 16 . 12 Cannon 1100 | . . 58 . 41 64 . . . 5 . 3 . 7 59 . 28 91 3 1 9 63 76 29 1 . 22 15 108 73 91 52 201 Launcher 105 | . . 1 3 4 13 3 12 . 8 . 3 . . . . . 22 2 . 2 3 6 . . . . . 3 8 2 2 8 Special 14 | . 5 . . . . . . . . . . . . . . . 1 2 . 6 . . . . . . . . . . . . Kinetic 594 | 5 28 60 . 48 111 . 5 2 26 . 3 . 4 20 . 2 17 3 1 30 138 14 29 30 . . . . . . . 18 Thermal 1703 | 5 42 48 . 38 75 12 118 23 96 . 18 58 15 67 . 29 252 . . . 10 82 59 1 2 131 19 114 73 90 49 177 Explosive 99 | . . . 3 4 13 3 12 . 8 . 3 . . . . . 22 2 . 2 3 6 . . . . . . 6 2 2 8 Electromagnetic 102 | . 16 3 14 6 1 . . . . . . . . . . . . . . . . 4 . . . . 6 3 11 17 3 18 Robot Hit Streak 68 | 4 7 15 10 13 38 15 19 35 41 . 19 31 6 21 . 4 45 4 . 12 19 22 25 6 . 35 7 14 17 26 19 68 Robot Miss Streak 6 | 2 4 4 3 3 6 3 5 2 3 . 2 3 3 2 . 1 6 6 . 3 4 1 3 3 5 3 2 3 4 3 1 4 Penetration Max 2 | . . . . . . . . . 1 . . . . . . . . . . 1 2 . . 1 . . . . . 1 . . Secondary Targets 14 | . . . . . . . 3 . . . . . 1 . . . 4 . . 1 . . . 3 . 2 . . . . . . Max Gunslinging Chain 1 | . . . . . . . 1 . . . . . 1 . . . 1 . . 1 . . . 1 . 1 . . . . . . Capacitor 385 | . . . . . . . . . . . . . . . . . . . . . . . . . . . 25 105 . 16 50 189 Shots Hit Robots 1805 | 5 49 73 15 46 126 11 108 23 107 . 20 43 10 50 . 7 217 17 8 27 98 73 66 22 14 87 18 83 64 67 22 229 Core Hits 1316 | 2 26 36 14 29 74 12 82 11 66 . 20 41 9 32 . 4 230 40 4 6 89 65 56 17 8 62 7 42 72 43 15 102 Critical Kills 37 | . . 1 . . 3 . . . 1 . . . . 4 . . 3 . . 2 5 1 . 6 . 3 . 4 . 2 . 2 Critical Parts Destroyed 33 | . . . . . 1 . . . 2 . 1 . . 3 . . . . . 4 9 . . 4 . 6 . . . . . 3 Critical Strikes 99 | . 4 1 . . 5 . . . 4 . 1 1 . 7 . 2 4 . . 6 20 3 3 10 . 9 . 10 . 2 . 7 Burn 9 | . 3 . . . . . . . 1 . . 1 . . . 1 1 . . . 1 1 . . . . . . . . . . Meltdown 15 | . . 1 . . 1 . . . . . . . . 1 . . 3 . . . . 1 . . . . . 4 . 2 . 2 Destroy 57 | . . . . . 4 . . . 3 . 1 . . 6 . . . . . 6 14 . . 10 . 9 . . . . . 4 Blast 8 | . . . . . . . . . . . . . . . . . . . . . 5 . 3 . . . . . . . . . Corrupt 2 | . 1 . . . . . . . . . . . . . . . . . . . . . . . . . . . . . . 1 Sever 2 | . . . . . . . . . . . . . . . . 1 . . . . . . . . . . . 1 . . . . Sunder 6 | . . . . . . . . . . . . . . . . . . . . . . 1 . . . . . 5 . . . . Melee Attacks 240 | . . . 8 9 4 3 36 5 . . 1 5 4 6 . 3 28 12 8 . . 12 2 . 15 3 4 29 8 . . 35 Kinetic 4 | . . . . . . . . . . . . . . . . . . . . . . . . . . . . 4 . . . . Impact 53 | . . . . 2 4 3 36 5 . . 1 2 . . . . . . . . . . . . . . . . . . . . Slashing 138 | . . . 8 7 . . . . . . . 3 4 6 . 3 28 12 8 . . 8 2 . 15 3 4 19 8 . . . Piercing . | . . . . . . . . . . . . . . . . . . . . . . . . . . . . . . . . . Entropic 45 | . . . . . . . . . . . . . . . . . . . . . . 4 . . . . . 6 . . . 35 Sneak Attacks 59 | . . . . 1 . . 1 . . . . 2 2 . . . 12 12 8 . . 1 2 . 14 2 2 . . . . . Combat Hostiles . | . . . . . . . . . . . . . . . . . . . . . . . . . . . . . . . . . Follow-up Attacks 1 | . . . . . . . . . . . . . . . . . . . . . . . . . . . . 1 . . . . Damage Inflicted 77851 | 60 611 1354 581 1646 3058 519 3276 663 3967 . 796 1096 381 1418 . 197 10452 2083 685 383 3808 3983 2557 279 1385 2891 707 4357 5399 3293 1953 14013 Guns 22544 | 60 606 547 175 442 1141 243 2286 663 2803 . 415 997 212 641 . 41 4159 . . 234 1307 443 1651 249 . 2655 226 198 . 24 . 126 Cannons 28264 | . . 726 . 498 675 . . . 104 . 11 . . 777 . 117 1658 34 . 149 1420 2248 740 30 . 84 326 2834 2363 2598 1079 9793 Explosions 17121 | . . 81 295 624 1242 276 664 . 1060 . 370 . . . . . 3433 1034 . . 1081 868 . . . . . 380 2646 671 874 1522 Melee 9852 | . . . 111 82 . . 326 . . . . 99 169 . . 39 1196 1015 685 . . 424 166 . 1385 152 155 886 390 . . 2572 Ramming 70 | . 5 . . . . . . . . . . . . . . . 6 . . . . . . . . . . 59 . . . . Kinetic 8638 | 22 165 620 . 376 1009 . 86 20 592 . 11 . . 223 . 13 464 34 . 383 2571 417 740 249 . . . 39 . . . 604 Thermal 41269 | 38 327 619 55 400 807 243 2200 643 2315 . 415 997 212 1195 . 145 5796 . . . 156 2165 1651 30 . 2739 392 3032 1959 2598 1037 9103 Explosive 15939 | . . . 240 624 1242 276 664 . 1060 . 370 . . . . . 2923 1034 . . 1081 868 . . . . . 113 2377 671 874 1522 Electromagnetic 2122 | . 114 115 175 164 . . . . . . . . . . . . 67 . . . . 109 . . . . 160 267 673 24 42 212 Impact 507 | . . . . 82 . . 326 . . . . 99 . . . . . . . . . . . . . . . . . . . . Slashing 5928 | . . . 111 . . . . . . . . . 169 . . 39 1196 1015 685 . . 99 166 . 1385 152 155 366 390 . . . Piercing . | . . . . . . . . . . . . . . . . . . . . . . . . . . . . . . . . . Entropic 3378 | . . . . . . . . . . . . . . . . . . . . . . 325 . . . . . 481 . . . 2572 Highest Corruption 26 | . . . . . . . 6 1 1 1 1 3 . . . . 19 19 19 19 9 4 9 17 17 2 . 26 4 16 8 19 Average Corruption 8 | . . . . . . . 3 1 1 1 1 2 . . . . 15 19 19 19 7 3 5 15 12 1 . 13 2 8 6 15 Corruption Purged 24 | . . . . . . . . . . . . 3 . . . . . . . . . . . . 21 . . . . . . . Corruption Blocked . | . . . . . . . . . . . . . . . . . . . . . . . . . . . . . . . . . Effects 475 | . . . . . . . 28 . 10 . 1 9 . . . . 99 28 18 2 43 14 39 18 20 2 . 60 5 36 12 31 Message Errors 85 | . . . . . . . 6 . 2 . . 2 . . . . 16 6 1 . 6 2 13 2 4 . . 10 2 5 1 7 Matter Fused 110 | . . . . . . . 9 . 5 . 1 2 . . . . 18 8 7 . 13 6 10 7 4 1 . 7 . 5 1 6 Heat Flow Errors 60 | . . . . . . . 3 . 2 . . . . . . . 12 5 2 . 6 . 6 2 3 . . 11 1 2 1 4 Energy Discharges 53 | . . . . . . . 2 . . . . 2 . . . . 9 5 1 . 4 4 . 2 3 1 . 9 1 5 1 4 Parts Rejected 9 | . . . . . . . . . . . . 1 . . . . 4 . . . 1 . . . . . . 2 . . . 1 Parts Fused 5 | . . . . . . . . . . . . . . . . . . . 1 . . . . . . . . . 1 1 1 1 Data Loss (minor) 73 | . . . . . . . 4 . . . . 1 . . . . 20 3 5 2 7 2 6 1 1 . . 7 . 8 3 3 Data Loss (major) 17 | . . . . . . . 1 . 1 . . . . . . . 3 . . . 3 . 1 1 2 . . 2 . 3 . . Misfires 16 | . . . . . . . 2 . . . . 1 . . . . 2 . 1 . 1 . . 3 . . . 2 . 1 2 1 Alerts 12 | . . . . . . . . . . . . . . . . . 4 . . . . . 3 . 1 . . 3 . 1 . . Misdirections 6 | . . . . . . . . . . . . . . . . . 1 . . . . . . . 1 . . 3 . 1 . . Weapon Failures 29 | . . . . . . . 1 . . . . . . . . . 10 1 . . 2 . . . 1 . . 4 . 4 2 4 Overload Shots . | . . . . . . . . . . . . . . . . . . . . . . . . . . . . . . . . . Overflow Damage 3185 | . . . 52 117 46 44 155 . . . 4 59 160 29 . 28 449 387 223 . 3 46 60 . 315 47 110 126 244 73 86 322 Projectiles 714 | . . . . 19 10 . . . . . . . . 29 . 28 47 . . . 3 46 . . . 1 10 94 78 60 81 208 Explosions 487 | . . . 40 36 36 44 55 . . . 4 . . . . . 112 . . . . . . . . . . . 48 13 5 94 Melee 1984 | . . . 12 62 . . 100 . . . . 59 160 . . . 290 387 223 . . . 60 . 315 46 100 32 118 . . 20 Knockbacks 37 | . . . . . . . 1 . . . . 1 . 4 . 1 5 . . . 18 . . 1 . . . . . . . 6 Impact 2 | . . . . . . . 1 . . . . 1 . . . . . . . . . . . . . . . . . . . . Kinetic 32 | . . . . . . . . . . . . . . 3 . 1 5 . . . 16 . . 1 . . . . . . . 6 Secondary 3 | . . . . . . . . . . . . . . 1 . . . . . . 2 . . . . . . . . . . . Self-Inflicted Damage 639 | . . . 27 . . 11 51 . 192 . . . . . . . 197 . . . . . . . . . . 81 . 80 . . Shots 16 | . . . 1 . . 1 2 . 3 . . . . . . . 7 . . . . . . . . . . 1 . 1 . . Rammed 2 | . . . . . . . . . . . . . . . . . 1 . . . . . . . . . . 1 . . . . Targets Rammed 4 | . 2 . . . . . . . . . . . . . . . 1 . . . . . . . . . . 1 . . . . Kicked 2 | . 2 . . . . . . . . . . . . . . . . . . . . . . . . . . . . . . . Crushed . | . . . . . . . . . . . . . . . . . . . . . . . . . . . . . . . . . Highest Temperature 630 | 60 217 94 32 128 210 134 330 93 188 . . 443 . 316 . . 290 216 245 10 182 391 268 169 227 16 . 327 630 280 . 242 Average Temperature 79 | 28 60 32 22 27 43 63 85 38 65 . . 150 . 149 . . 80 96 130 7 62 81 34 101 118 16 . 116 207 140 . 92 Received Heat Transfer 5428 | . 435 357 186 108 369 63 234 8 . . 32 108 . 466 . . 969 36 9 126 250 543 53 13 . 141 9 286 54 327 . 246 Effects 9 | . . . . . . . . . . . . . . 1 . . . . . . . 3 . . . . . 1 2 2 . . Energy Bleed 2 | . . . . . . . . . . . . . . 1 . . . . . . . . . . . . . 1 . . . . Interference 5 | . . . . . . . . . . . . . . . . . . . . . . 3 . . . . . . . 2 . . Damage (minor) 2 | . . . . . . . . . . . . . . . . . . . . . . . . . . . . . 2 . . . Siege Activations 27 | . . . . . . . . . . . . 1 . 1 . . 2 . . . . . . . . 5 . 2 6 3 2 5 Total Turns 391 | . . . . . . . . . . . . 14 . 23 . . 86 . . . . . . . . 45 . 22 66 72 25 38 Longest Duration 60 | . . . . . . . . . . . . 14 . 23 . . 60 . . . . . . . . 14 . 17 36 48 17 18 Martial Activations . | . . . . . . . . . . . . . . . . . . . . . . . . . . . . . . . . . Shielding Activations . | . . . . . . . . . . . . . . . . . . . . . . . . . . . . . . . . . Robots Disrupted 3 | . . . . . . . . . . . . . . . . . . . . . . . . . . . . . . 3 . . Combat Hostiles 2 | . . . . . . . . . . . . . . . . . . . . . . . . . . . . . . 2 . . Robots Corrupted 14 | . . . . 1 . . 3 . . . . 2 . . . . . . . . . 1 . . . . 1 . 4 . . 2 Combat Hostiles 10 | . . . . . . . 2 . . . . . . . . . . . . . . 1 . . . . 1 . 4 . . 2 Parts Fried 23 | . 1 . 1 3 . . 1 . . . . 4 . . . . . . . . . . . . . . 1 5 6 . 1 . Impact Corruptions 10 | . . . . 2 . . 5 . . . . 2 . . . . . . . . . . . . . . . 1 . . . . Robots Melted 29 | . . 1 . . 1 . 1 2 4 . . . . 2 . . 7 . . . . 1 . . . . . 5 1 2 . 2 Combat Hostiles 21 | . . . . . 1 . 1 2 2 . . . . 2 . . 4 . . . . . . . . . . 5 1 1 . 2 Parts Melted 119 | . 3 3 . 1 3 1 11 6 3 . 4 7 2 7 . . 29 . . . 1 6 2 1 . 4 . 12 4 2 2 5 Heat Transferred 52556 | 111 1110 1295 100 592 1299 550 4667 1350 4952 . 911 2208 462 1802 . 298 10920 . . . 450 2654 2576 50 . 4001 296 2533 1591 2048 740 2990 Parts Sabotaged . | . . . . . . . . . . . . . . . . . . . . . . . . . . . . . . . . . Parts Stolen . | . . . . . . . . . . . . . . . . . . . . . . . . . . . . . . . . . Parts Stripped 29 | . . . . . . . . . . . . . . . . . . . . . . . . . . . . 29 . . . . Power Chain Reactions 1 | . . . 1 . . . . . . . . . . . . . . . . . . . . . . . . . . . . . Alert | -11 -10 -9 -9 -8 -8 -8 -8 -7 -7 -7 -7 -6 -6 -6 -6 -5 -5 -5 -5 -5 -4 -4 -4 -4 -4 -4 -3 -3 -2 -2 -1 -1 ------- Run | Yrd Mat Mat Min Mat Gar Mat Gar Fac Was Fac DSF Fac Low Low Dat Pro Fac Upp Upp War Pro Fac Ext Cet Arc Hub Res Qua Res Tes Acc Com Maximum Alert Level 5 | . . 1 . 1 4 3 5 3 1 . 1 1 . . . . 5 . . . . 2 2 2 1 2 1 2 2 3 2 2 Low Security (%) 39 | 100 100 53 100 96 1 . . . 96 100 18 97 . . . . 25 . . . . 34 54 . 9 34 96 56 16 12 . 25 Level 1 17 | . . 46 . 3 10 . . . 3 . 81 2 . . . . 3 . . . . 12 5 47 90 63 3 4 46 47 27 19 Level 2 26 | . . . . . 17 44 17 53 . . . . . . . . 28 . . . . 53 40 52 . 2 . 38 37 34 72 54 Level 3 7 | . . . . . 33 55 24 46 . . . . . . . . 6 . . . . . . . . . . . . 6 . . Level 4 7 | . . . . . 37 . 50 . . . . . . . . . 18 . . . . . . . . . . . . . . . Level 5 2 | . . . . . . . 6 . . . . . . . . . 16 . . . . . . . . . . . . . . . High Security . | . . . . . . . . . . . . . . . . . . . . . . . . . . . . . . . . . Max Security . | . . . . . . . . . . . . . . . . . . . . . . . . . . . . . . . . . Sterilizations 1 | . . . . . . . . . . . 1 . . . . . . . . . . . . . . . . . . . . . Peak Influence 1890 | 5 173 300 113 253 1598 789 1619 849 214 . 392 205 . . . . 1890 . . . . 499 681 504 306 420 213 564 682 773 557 600 Initial 849 | . . 63 90 22 163 778 402 849 214 . 3 205 . . . . . . . . . 45 201 328 152 65 213 . 233 362 460 262 Average 416 | 1 59 142 50 44 961 691 1099 705 31 . 248 124 . . . . 802 . . . . 285 293 406 246 240 62 241 376 370 438 368 Influence Increases 18373 | 10 415 602 187 651 1475 181 1327 151 57 5 429 283 205 235 . 35 2823 162 . 622 677 880 956 346 286 973 123 1118 971 897 468 823 Destroy 0b10 Robot/C 9580 | . 240 400 120 320 720 80 620 80 . . 240 140 60 220 . 20 1360 160 . 420 580 420 460 160 80 420 60 560 540 400 220 480 Destroy 0b10 Robot/NC 635 | 10 . 40 5 35 15 20 25 . . . 20 35 . 5 . 5 130 . . 15 5 35 30 10 45 50 15 10 . 20 15 40 Destroy Leader 1484 | . 50 96 20 80 30 36 30 40 . . 50 62 10 10 . 10 252 . . . 50 92 54 . . 118 22 80 110 60 50 72 Allied During Kill 1039 | . . . . . 50 6 . 2 . . 38 6 . . . . . 2 . 187 12 . 294 170 125 147 . . . . . . Successful Hack 558 | . 14 33 . 35 44 . 30 24 . 5 . 36 . . . . 38 . . . . 52 49 . . 21 12 96 . 24 45 . Select Force Hacks 50 | . . . . . . . . . . . . . . . . . . . . . . . . . . 50 . . . . . . Disable Machine 975 | . 15 . . 90 60 15 15 . . . 15 . . . . . 180 . . . . 90 . . 30 15 . 240 60 105 30 15 Anti-Garrison Action 1000 | . . . . . 400 . 450 . . . . . . . . . 150 . . . . . . . . . . . . . . . Destroy Structure 2047 | . 6 3 27 76 81 24 142 5 57 . 66 4 . . . . 398 . . . . 176 24 6 6 62 14 102 216 288 108 156 Partial Spotted 30 | . . . . . 15 . . . . . . . . . . . . . . . . 15 . . . . . . . . . . Lose Combat Pursuer 975 | . 90 30 15 15 60 . 15 . . . . . 135 . . . 315 . . . 30 . 45 . . 90 . 30 45 . . 60 Influence Decreases 18100 | 10 264 520 363 457 128 1160 327 1156 671 . 42 573 307 235 . 35 958 1023 406 794 1030 541 782 550 480 753 531 703 742 774 825 960 Entered New Map 6660 | . . 88 143 35 88 820 217 770 400 . 2 187 39 . . . . 691 192 598 426 28 211 258 230 123 195 . 182 282 307 148 Time Decay 8836 | 10 214 412 220 313 . 170 . 356 211 . . 386 268 170 . 35 488 302 214 76 534 413 531 222 230 350 306 513 470 452 518 452 Lost Part 1510 | . 50 10 . 20 . . 90 10 40 . . . . 50 . . 450 10 . 40 50 100 . 10 . 20 30 40 90 40 . 360 Lost Ally 705 | . . 10 . . 40 20 20 20 20 . 40 . . 15 . . 20 20 . 80 20 . 40 60 20 260 . . . . . . Purge Threat 389 | . . . . 89 . 150 . . . . . . . . . . . . . . . . . . . . . 150 . . . . Squads Dispatched 92 | . 3 . . 1 . 1 . 3 . 1 2 5 . 1 . . 26 . . . 1 6 2 . . 8 7 6 1 7 7 4 Investigation 21 | . 1 . . . . . . . . 1 . 1 . . . . 6 . . . . 1 1 . . 3 4 . . . 2 1 Extermination 28 | . . . . . . . . 2 . . . 2 . . . . 5 . . . . 2 . . . 1 . 6 . 3 4 3 Reinforcement 27 | . 2 . . . . . . 1 . . 2 1 . . . . 6 . . . . 3 1 . . 4 3 . 1 2 1 . Assault 10 | . . . . . . . . . . . . . . 1 . . 6 . . . 1 . . . . . . . . 2 . . Garrison 6 | . . . . 1 . 1 . . . . . 1 . . . . 3 . . . . . . . . . . . . . . . Intercept . | . . . . . . . . . . . . . . . . . . . . . . . . . . . . . . . . . Searches Triggered . | . . . . . . . . . . . . . . . . . . . . . . . . . . . . . . . . . Data Miner Redirects 8 | . . . . . . . . . . . . . . . . . 6 . . . . . 1 . . . . . . 1 . . Construction Impeded 5 | . . . . . . . . . . . . . . . . . 2 . . . . 1 . . . 1 . . . 1 . . Haulers Reinforced 3 | . . . . . . . . . . . . . . . . . 1 . . . . 1 . . . . . . 1 . . . Active Scanning Responses . | . . . . . . . . . . . . . . . . . . . . . . . . . . . . . . . . . Cargo Convoy Interrupts 1 | . . . . . . . . . . . . . . . . . 1 . . . . . . . . . . . . . . . Stealth | -11 -10 -9 -9 -8 -8 -8 -8 -7 -7 -7 -7 -6 -6 -6 -6 -5 -5 -5 -5 -5 -4 -4 -4 -4 -4 -4 -3 -3 -2 -2 -1 -1 --------- Run | Yrd Mat Mat Min Mat Gar Mat Gar Fac Was Fac DSF Fac Low Low Dat Pro Fac Upp Upp War Pro Fac Ext Cet Arc Hub Res Qua Res Tes Acc Com Distress Signals 50 | . 2 6 2 2 . . . 1 . . . 1 . . . . 4 . . 3 . 2 2 2 . 3 3 2 10 1 3 1 Communications Jammed . | . . . . . . . . . . . . . . . . . . . . . . . . . . . . . . . . . Distress Signals . | . . . . . . . . . . . . . . . . . . . . . . . . . . . . . . . . . Times Spotted 753 | . 27 35 8 29 44 5 34 6 6 . 10 12 5 13 . 1 125 8 2 53 33 31 26 9 16 40 15 44 40 24 15 37 Peak Tracking Total 17 | . 4 6 3 4 6 3 5 2 2 . 4 3 9 7 . 1 14 7 2 17 7 6 9 5 1 11 4 7 7 6 7 7 Tactical Retreats 48 | . 6 2 3 1 3 . 1 . . . . . 3 . . . 14 . . . 1 . 2 . . 5 . 2 3 . . 2 Traps | -11 -10 -9 -9 -8 -8 -8 -8 -7 -7 -7 -7 -6 -6 -6 -6 -5 -5 -5 -5 -5 -4 -4 -4 -4 -4 -4 -3 -3 -2 -2 -1 -1 ------- Run | Yrd Mat Mat Min Mat Gar Mat Gar Fac Was Fac DSF Fac Low Low Dat Pro Fac Upp Upp War Pro Fac Ext Cet Arc Hub Res Qua Res Tes Acc Com Traps Triggered 31 | . 1 . . . 6 . 5 2 . . 1 1 . . . . 4 . . . . 2 1 . . 1 1 3 . 2 . 1 Indirectly . | . . . . . . . . . . . . . . . . . . . . . . . . . . . . . . . . . Trap Hack Attempts . | . . . . . . . . . . . . . . . . . . . . . . . . . . . . . . . . . Triggered . | . . . . . . . . . . . . . . . . . . . . . . . . . . . . . . . . . Disarmed . | . . . . . . . . . . . . . . . . . . . . . . . . . . . . . . . . . Reprogrammed . | . . . . . . . . . . . . . . . . . . . . . . . . . . . . . . . . . Reused . | . . . . . . . . . . . . . . . . . . . . . . . . . . . . . . . . . Traps Extracted . | . . . . . . . . . . . . . . . . . . . . . . . . . . . . . . . . . Installed . | . . . . . . . . . . . . . . . . . . . . . . . . . . . . . . . . . Triggered . | . . . . . . . . . . . . . . . . . . . . . . . . . . . . . . . . . Machines | -11 -10 -9 -9 -8 -8 -8 -8 -7 -7 -7 -7 -6 -6 -6 -6 -5 -5 -5 -5 -5 -4 -4 -4 -4 -4 -4 -3 -3 -2 -2 -1 -1 ---------- Run | Yrd Mat Mat Min Mat Gar Mat Gar Fac Was Fac DSF Fac Low Low Dat Pro Fac Upp Upp War Pro Fac Ext Cet Arc Hub Res Qua Res Tes Acc Com Machines Disabled 80 | . 1 . . 6 9 1 7 . . . 1 . . 1 . . 13 . . . 1 6 . . 2 1 . 16 4 8 2 1 Max in Single Turn 4 | . 1 . . 2 1 1 1 . . . . . . 1 . . 4 . . . 1 2 . . . 1 . 2 1 1 1 1 Garrison Access 4 | . . . . . . . . 1 . . . . . . . . 1 . . . . 1 . . . . . . 1 . . . Garrison Relay 10 | . . . . . 5 . 5 . . . . . . . . . . . . . . . . . . . . . . . . . Network Hub 1 | . . . . . . . . . . . . . . . . . . . . . . . . . . 1 . . . . . . Machines Repaired . | . . . . . . . . . . . . . . . . . . . . . . . . . . . . . . . . . Machines Dismantled . | . . . . . . . . . . . . . . . . . . . . . . . . . . . . . . . . . Machines Sabotaged 1 | . . . . . . . . . . . . . . . . . . . . . . . . . . 1 . . . . . . Overloaded Fab Kills . | . . . . . . . . . . . . . . . . . . . . . . . . . . . . . . . . . Hacking | -11 -10 -9 -9 -8 -8 -8 -8 -7 -7 -7 -7 -6 -6 -6 -6 -5 -5 -5 -5 -5 -4 -4 -4 -4 -4 -4 -3 -3 -2 -2 -1 -1 --------- Run | Yrd Mat Mat Min Mat Gar Mat Gar Fac Was Fac DSF Fac Low Low Dat Pro Fac Upp Upp War Pro Fac Ext Cet Arc Hub Res Qua Res Tes Acc Com Machines Accessed 102 | . 1 6 . 9 4 3 4 4 . 1 . 5 1 1 4 . 8 . 2 1 . 6 4 1 . 3 7 14 . 5 5 3 Terminals 67 | . 1 6 . 6 4 2 4 1 . 1 . 5 . . . . 3 . . . . 2 4 1 . 3 4 11 . 4 2 3 Fabricators 9 | . . . . . . . . 1 . . . . . . . . 2 . . . . 3 . . . . 1 . . . 2 . Repair Stations 2 | . . . . . . . . . . . . . . . . . 1 . . . . . . . . . . 1 . . . . Recycling Units . | . . . . . . . . . . . . . . . . . . . . . . . . . . . . . . . . . Scanalyzers 11 | . . . . 2 . . . 1 . . . . . . . . 2 . . . . . . . . . 2 2 . 1 1 . Garrison Access 4 | . . . . 1 . 1 . 1 . . . . . . . . . . . . . 1 . . . . . . . . . . Total Hacks 263 | . 6 15 . 20 7 6 8 10 . 4 . 11 1 1 29 . 24 . 4 1 . 11 10 2 . 7 18 38 . 11 11 8 Successful 131 | . 4 7 . 11 3 2 4 7 . 1 . 3 1 1 29 . 14 . 4 1 . 7 6 . . 2 3 11 . 5 3 2 Failed 132 | . 2 8 . 9 4 4 4 3 . 3 . 8 . . . . 10 . . . . 4 4 2 . 5 15 27 . 6 8 6 Catastrophic 44 | . . 3 . 2 1 1 2 1 . . . 2 . . . . 3 . . . . 2 2 1 . . 6 10 . 1 4 3 Database Lockouts . | . . . . . . . . . . . . . . . . . . . . . . . . . . . . . . . . . Manual 67 | . 3 3 . 5 . 1 . 1 . . . 8 . . . . 4 . . 1 . 3 7 1 . 7 4 12 . 3 2 2 Terminals 159 | . 6 15 . 14 7 5 8 2 . 4 . 11 . . . . 7 . . . . 4 10 2 . 7 9 28 . 8 4 8 Fabricators 25 | . . . . . . . . 2 . . . . . . . . 10 . . . . 6 . . . . 2 . . . 5 . Repair Stations 4 | . . . . . . . . . . . . . . . . . 2 . . . . . . . . . . 2 . . . . Recycling Units . | . . . . . . . . . . . . . . . . . . . . . . . . . . . . . . . . . Scanalyzers 34 | . . . . 4 . . . 5 . . . . . . . . 5 . . . . . . . . . 7 8 . 3 2 . Garrison Access 5 | . . . . 2 . 1 . 1 . . . . . . . . . . . . . 1 . . . . . . . . . . Terminal Hacks 82 | . 4 6 . 6 3 1 4 . . 1 . 3 1 1 29 . 2 . 4 1 . 1 3 . . . . 8 . 1 1 2 Record 18 | . . . . . . . . . . . . . . . 11 . . . 3 . . 1 1 . . . . 1 . . . 1 Part Schematic 16 | . 1 . . . . . . . . . . . . . 12 . . . . . . . 2 . . . . 1 . . . . Robot Schematic 3 | . . . . . . . . . . . . . . . 3 . . . . . . . . . . . . . . . . . Robot Analysis 1 | . . 1 . . . . . . . . . . . . . . . . . . . . . . . . . . . . . . Prototype ID Bank 4 | . . . . 1 . . . . . . . . . . 3 . . . . . . . . . . . . . . . . . Open Door 7 | . . . . . . . 1 . . . . . 1 1 . . . . 1 1 . . . . . . . 1 . . . 1 Open DSF 1 | . . . . . . . . . . 1 . . . . . . . . . . . . . . . . . . . . . . Branch Access Points 3 | . . . . . . . . . . . . 1 . . . . 1 . . . . . . . . . . . . . 1 . Emergency Access Points 2 | . 1 . . . . . 1 . . . . . . . . . . . . . . . . . . . . . . . . . Terminal Index 1 | . . . . . . . . . . . . 1 . . . . . . . . . . . . . . . . . . . . Scanalyzer Index 1 | . . . . . . . . . . . . 1 . . . . . . . . . . . . . . . . . . . . Alert Level 1 | . . . . . . . . . . . . . . . . . . . . . . . . . . . . 1 . . . . Unreport Threat 3 | . . . . 1 . 1 . . . . . . . . . . . . . . . . . . . . . 1 . . . . Locate Traps 6 | . . 2 . 2 . . . . . . . . . . . . 1 . . . . . . . . . . 1 . . . . Maintenance Status 2 | . . . . 1 . . . . . . . . . . . . . . . . . . . . . . . 1 . . . . Security Status 1 | . . 1 . . . . . . . . . . . . . . . . . . . . . . . . . . . . . . Hauler Manifests 2 | . 1 1 . . . . . . . . . . . . . . . . . . . . . . . . . . . . . . Registered Components 2 | . 1 1 . . . . . . . . . . . . . . . . . . . . . . . . . . . . . . Zone Layout 3 | . . . . 1 . . . . . . . . . . . . . . . . . . . . . . . 1 . 1 . . Garrison Registry 1 | . . . . . 1 . . . . . . . . . . . . . . . . . . . . . . . . . . . Patrol Navigation 2 | . . . . . 1 . 1 . . . . . . . . . . . . . . . . . . . . . . . . . Security Stations 2 | . . . . . 1 . 1 . . . . . . . . . . . . . . . . . . . . . . . . . Fabricator Hacks 14 | . . . . . . . . . . . . . . . . . 7 . . . . 4 . . . . 2 . . . 1 . Network Status 2 | . . . . . . . . . . . . . . . . . 1 . . . . 1 . . . . . . . . . . Load Schematic 6 | . . . . . . . . . . . . . . . . . 3 . . . . 1 . . . . 1 . . . 1 . Build 6 | . . . . . . . . . . . . . . . . . 3 . . . . 2 . . . . 1 . . . . . Repair Station Hacks 2 | . . . . . . . . . . . . . . . . . 2 . . . . . . . . . . . . . . . Scan Component 1 | . . . . . . . . . . . . . . . . . 1 . . . . . . . . . . . . . . . Repair 1 | . . . . . . . . . . . . . . . . . 1 . . . . . . . . . . . . . . . Recycling Unit Hacks . | . . . . . . . . . . . . . . . . . . . . . . . . . . . . . . . . . Scanalyzer 16 | . . . . 3 . . . 5 . . . . . . . . 1 . . . . . . . . . 1 3 . 2 1 . Insert Component 5 | . . . . 1 . . . 2 . . . . . . . . . . . . . . . . . . 1 1 . . . . Analyze 4 | . . . . 1 . . . 2 . . . . . . . . . . . . . . . . . . . 1 . . . . Retrieve Study 7 | . . . . 1 . . . 1 . . . . . . . . 1 . . . . . . . . . . 1 . 2 1 . Garrison Access Hacks 4 | . . . . 1 . 1 . 1 . . . . . . . . . . . . . 1 . . . . . . . . . . Unlock Access 2 | . . . . 1 . 1 . . . . . . . . . . . . . . . . . . . . . . . . . . Seal Access 2 | . . . . . . . . 1 . . . . . . . . . . . . . 1 . . . . . . . . . . Unauthorized Hacks 13 | . . 1 . 1 . . . 1 . . . . . . . . 2 . . . . 1 3 . . 2 . . . 2 . . Terminals 11 | . . 1 . 1 . . . 1 . . . . . . . . 1 . . . . 1 3 . . 2 . . . 1 . . Assimilate 1 | . . 1 . . . . . . . . . . . . . . . . . . . . . . . . . . . . . . Botnet 8 | . . . . 1 . . . 1 . . . . . . . . 1 . . . . 1 2 . . 1 . . . 1 . . Operators 1 | . . . . . . . . . . . . . . . . . . . . . . . 1 . . . . . . . . . Sabotage 1 | . . . . . . . . . . . . . . . . . . . . . . . . . . 1 . . . . . . Fabricators 1 | . . . . . . . . . . . . . . . . . 1 . . . . . . . . . . . . . . . Haulers 1 | . . . . . . . . . . . . . . . . . 1 . . . . . . . . . . . . . . . Repair Stations . | . . . . . . . . . . . . . . . . . . . . . . . . . . . . . . . . . Recycling Units . | . . . . . . . . . . . . . . . . . . . . . . . . . . . . . . . . . Scanalyzers 1 | . . . . . . . . . . . . . . . . . . . . . . . . . . . . . . 1 . . Researchers 1 | . . . . . . . . . . . . . . . . . . . . . . . . . . . . . . 1 . . Garrison Access . | . . . . . . . . . . . . . . . . . . . . . . . . . . . . . . . . . Data Cores Recovered 1 | . . 1 . . . . . . . . . . . . . . . . . . . . . . . . . . . . . . Used . | . . . . . . . . . . . . . . . . . . . . . . . . . . . . . . . . . Hacking Detections 81 | . 1 6 . 9 2 2 3 3 . 1 . 5 . . . . 7 . . . . 5 4 1 . 2 7 11 . 5 5 2 Full Trace Events 14 | . . . . . 1 . 2 . . 1 . 1 . . . . 3 . . . . . . . . 2 2 . . . 2 . Feedback Events 2 | . . . . . . . . . . . . 1 . . . . . . . . . . . . . 1 . . . . . . Corruption 1 | . . . . . . . . . . . . 1 . . . . . . . . . . . . . . . . . . . . Hackware Fried 1 | . . . . . . . . . . . . . . . . . . . . . . . . . . 1 . . . . . . Feedback Blocked . | . . . . . . . . . . . . . . . . . . . . . . . . . . . . . . . . . Robot Schematics Acquired 6 | . . . . . . . . . . . . . . . 3 . . . . . . . . . . . . . . 3 . . Robots Built . | . . . . . . . . . . . . . . . . . . . . . . . . . . . . . . . . . Authchips . | . . . . . . . . . . . . . . . . . . . . . . . . . . . . . . . . . Time . | . . . . . . . . . . . . . . . . . . . . . . . . . . . . . . . . . Total Robot Build Rating . | . . . . . . . . . . . . . . . . . . . . . . . . . . . . . . . . . Part Schematics Acquired 24 | . 1 . . 1 . . . 2 . . . . . . 12 . . . . . . . 2 . . . . 2 . 4 . . Parts Built 12 | . . . . . . . . . . . . . . . . . 6 . . . . 4 . . . . 2 . . . . . Authchips 4 | . . . . . . . . . . . . . . . . . 3 . . . . 1 . . . . . . . . . . Time 359 | . . . . . . . . . . . . . . . . . 142 . . . . 100 . . . . 117 . . . . . Total Part Build Rating 74 | . . . . . . . . . . . . . . . . . 30 . . . . 30 . . . . 14 . . . . . Part Studies Acquired 7 | . . . . 1 . . . 1 . . . . . . . . 1 . . . . . . . . . . 1 . 2 1 . Parts Repaired 1 | . . . . . . . . . . . . . . . . . 1 . . . . . . . . . . . . . . . Time 38 | . . . . . . . . . . . . . . . . . 38 . . . . . . . . . . . . . . . Parts Recycled . | . . . . . . . . . . . . . . . . . . . . . . . . . . . . . . . . . Recycled Matter . | . . . . . . . . . . . . . . . . . . . . . . . . . . . . . . . . . Retrieved Matter . | . . . . . . . . . . . . . . . . . . . . . . . . . . . . . . . . . Retrieved Components . | . . . . . . . . . . . . . . . . . . . . . . . . . . . . . . . . . Parts Scanalyzed 4 | . . . . 1 . . . 2 . . . . . . . . . . . . . . . . . . 1 . . . . . Part Schematics Acquired 4 | . . . . 1 . . . 2 . . . . . . . . . . . . . . . . . . . 1 . . . . Parts Damaged . | . . . . . . . . . . . . . . . . . . . . . . . . . . . . . . . . . Bothacking | -11 -10 -9 -9 -8 -8 -8 -8 -7 -7 -7 -7 -6 -6 -6 -6 -5 -5 -5 -5 -5 -4 -4 -4 -4 -4 -4 -3 -3 -2 -2 -1 -1 ------------ Run | Yrd Mat Mat Min Mat Gar Mat Gar Fac Was Fac DSF Fac Low Low Dat Pro Fac Upp Upp War Pro Fac Ext Cet Arc Hub Res Qua Res Tes Acc Com Used RIF Installer . | . . . . . . . . . . . . . . . . . . . . . . . . . . . . . . . . . Robots Hacked 1 | . . . . . . . . . . . . . . . . . 1 . . . . . . . . . . . . . . . Non-combat 1 | . . . . . . . . . . . . . . . . . 1 . . . . . . . . . . . . . . . Combat . | . . . . . . . . . . . . . . . . . . . . . . . . . . . . . . . . . Robot Hacks Applied 1 | . . . . . . . . . . . . . . . . . 1 . . . . . . . . . . . . . . . find_chute 1 | . . . . . . . . . . . . . . . . . 1 . . . . . . . . . . . . . . . Relay Couplers Released 40 | . . . . . 18 . 21 . . . . . . . . . . . . . . . . . . . . . 1 . . . Machine Destruction 37 | . . . . . 18 . 18 . . . . . . . . . . . . . . . . . . . . . 1 . . . Programmers 3 | . . . . . . . 3 . . . . . . . . . . . . . . . . . . . . . . . . . Fabnet Peak Effective % . | . . . . . . . . . . . . . . . . . . . . . . . . . . . . . . . . . Robots Rewired 27 | . . . . . 4 . 1 . . . . . . 2 . . . 2 . 5 1 . 12 . . . . . . . . . Allies Hacked 2 | . . . . . . . 1 . . . . . . . . . . . . 1 . . . . . . . . . . . . Hacks Repelled . | . . . . . . . . . . . . . . . . . . . . . . . . . . . . . . . . . Allies | -11 -10 -9 -9 -8 -8 -8 -8 -7 -7 -7 -7 -6 -6 -6 -6 -5 -5 -5 -5 -5 -4 -4 -4 -4 -4 -4 -3 -3 -2 -2 -1 -1 -------- Run | Yrd Mat Mat Min Mat Gar Mat Gar Fac Was Fac DSF Fac Low Low Dat Pro Fac Upp Upp War Pro Fac Ext Cet Arc Hub Res Qua Res Tes Acc Com Total Allies 59 | . . 1 . . 4 . 2 . 20 . . . . 2 . . . 2 . 5 1 . 17 5 . . . . . . . . Largest Group 19 | . . 1 . . 4 2 1 1 19 4 4 2 . 2 . . . 2 1 6 1 . 14 15 15 13 . . . . . . Highest-Rated Group 890 | . . 10 . . 118 52 20 20 465 124 124 54 . 52 . . . 79 49 366 47 . 693 890 890 791 . . . . . . Highest-Rated Ally 159 | . . 10 . . 31 31 20 20 35 35 35 27 . 32 . . . 49 49 68 47 . 159 140 96 96 . . . . . . Initial Warlord ECA Mod 26 | . . . . . . 9 9 17 17 17 17 26 26 26 26 25 25 20 20 20 19 19 19 19 19 19 18 18 17 17 16 16 Warlord Squad Rendezvous 5 | . . . . . . . . . . . . . . . . . 5 . . . . . . . . . . . . . . . Dakka 1 | . . . . . . . . . . . . . . . . . 1 . . . . . . . . . . . . . . . Infantry 1 | . . . . . . . . . . . . . . . . . 1 . . . . . . . . . . . . . . . Geek 1 | . . . . . . . . . . . . . . . . . 1 . . . . . . . . . . . . . . . Ranger 1 | . . . . . . . . . . . . . . . . . 1 . . . . . . . . . . . . . . . Pyro 1 | . . . . . . . . . . . . . . . . . 1 . . . . . . . . . . . . . . . Total Orders 2 | . . . . . . . . . . . . . . . . . 2 . . . . . . . . . . . . . . . EXPLORE 2 | . . . . . . . . . . . . . . . . . 2 . . . . . . . . . . . . . . . Ally Attacks 438 | . . . . . 28 8 2 2 61 . 19 . . 9 . . . 5 1 68 15 . 77 35 43 65 . . . . . . Total Damage 14682 | . . . . . 490 229 35 37 1007 . 1070 . . 279 . . . 222 19 4332 319 . 2426 916 1221 2080 . . . . . . Kills 66 | . . . . . 4 2 . . 2 . 4 . . 1 . . . 1 . 24 2 . 10 5 5 6 . . . . . . Allies Corrupted 1 | . . . . . . . . . . . . . . . . . . . . 1 . . . . . . . . . . . . Allies Melted 3 | . . . . . . . . . 2 . . . . . . . . . . . . . . . . . . . 1 . . . Intel | -11 -10 -9 -9 -8 -8 -8 -8 -7 -7 -7 -7 -6 -6 -6 -6 -5 -5 -5 -5 -5 -4 -4 -4 -4 -4 -4 -3 -3 -2 -2 -1 -1 ------- Run | Yrd Mat Mat Min Mat Gar Mat Gar Fac Was Fac DSF Fac Low Low Dat Pro Fac Upp Upp War Pro Fac Ext Cet Arc Hub Res Qua Res Tes Acc Com Active Infowar (turns) 17062 | 16 393 . . 113 . 349 269 595 108 . . 535 665 1130 155 1034 1049 592 448 832 874 1056 4 . . 291 1043 1600 1024 889 1430 568 Optics 7 | . . . . . . . . . . . . . . . . . . . . 6 . . 1 . . . . . . . . . Sensors 5918 | . . . . . . . . . . . . 535 665 1130 155 1034 916 . . . . . . . . . . . . 610 873 . IFF 3994 | . . . . . . . . . . . . . . . . . . . . . . . . . . 291 1042 1585 878 198 . . Terrain 9158 | 9 393 . . . . . . . . . . . . . . . 133 592 448 826 874 1056 . . . . 116 1059 903 789 1392 568 Seismic 1444 | 7 . . . 113 . 349 269 595 108 . . . . . . . . . . . . . 3 . . . . . . . . . T.N.C. 1 | . . . . . . . . . . . . . . . . . 1 . . . . . . . . . . . . . . . Cloaking 2 | . . . . . . . . . . . . . . . . . . . . . . 2 . . . . . . . . . . ECM 2 | . . . . . . . . . . . . . . . . . . . . . . . . . . . . 2 . . . . Robot Analysis Total 1 | . . 1 . . . . . . . . . . . . . . . . . . . . . . . . . . . . . . Derelict Logs Recovered 5 | . . . 1 . . . . . . . . . . 1 . 1 . 1 . . 1 . . . . . . . . . . . Drone Launches 2 | . . . . . . . . . . . . . . . . . 2 . . . . . . . . . . . . . . . Drone Recoveries . | . . . . . . . . . . . . . . . . . . . . . . . . . . . . . . . . . Exploration | -11 -10 -9 -9 -8 -8 -8 -8 -7 -7 -7 -7 -6 -6 -6 -6 -5 -5 -5 -5 -5 -4 -4 -4 -4 -4 -4 -3 -3 -2 -2 -1 -1 ------------- Run | Yrd Mat Mat Min Mat Gar Mat Gar Fac Was Fac DSF Fac Low Low Dat Pro Fac Upp Upp War Pro Fac Ext Cet Arc Hub Res Qua Res Tes Acc Com Turns Passed 33209 | 125 564 1114 598 896 1691 356 1698 818 1401 13 430 906 691 1293 155 1063 2623 668 448 1260 1756 1168 1619 474 486 793 1105 2006 1196 1121 1431 1243 Spaces Moved 15608 | 78 201 445 292 451 814 197 677 426 513 6 157 481 395 676 94 544 1128 454 332 871 707 413 818 244 215 316 576 1000 519 522 506 540 Core 18 | 4 . . . . . . . . . . . . . . . . . . . . . . . . . . . . . . . 14 Treads 9737 | . 13 237 144 . 1 . . . 475 6 157 481 395 676 94 544 248 . . . 697 327 818 244 215 316 576 1000 519 522 506 526 Legs 244 | 74 170 . . . . . . . . . . . . . . . . . . . . . . . . . . . . . . . Wheels 5609 | . 18 208 148 451 813 197 677 426 38 . . . . . . . 880 454 332 871 10 86 . . . . . . . . . . Hover . | . . . . . . . . . . . . . . . . . . . . . . . . . . . . . . . . . Flight . | . . . . . . . . . . . . . . . . . . . . . . . . . . . . . . . . . Fastest Speed 50 | 50 105 93 130 130 140 140 140 135 155 243 243 162 162 162 162 162 110 110 110 110 131 154 152 152 158 158 155 152 160 160 145 50 Average Speed 160 | 116 174 186 184 143 140 140 180 166 222 243 243 162 162 162 162 162 150 121 123 127 215 174 152 158 158 158 157 153 160 162 155 146 Slowest Speed 385 | 120 190 320 240 145 320 140 190 205 243 243 243 162 162 162 162 162 245 140 125 275 242 242 154 160 163 163 163 240 243 245 160 385 Overloaded Moves . | . . . . . . . . . . . . . . . . . . . . . . . . . . . . . . . . . Propulsion Burnouts . | . . . . . . . . . . . . . . . . . . . . . . . . . . . . . . . . . Robots Hopped . | . . . . . . . . . . . . . . . . . . . . . . . . . . . . . . . . . Potential Cave-ins 3 | . . . . . . . . . . . . . . . . 2 . . . . . . . . . . . . . 1 . . Cave-ins Triggered . | . . . . . . . . . . . . . . . . . . . . . . . . . . . . . . . . . Exploration Rate (%) 54 | 4 32 51 80 41 82 22 92 14 96 . 90 19 62 69 68 76 34 69 57 90 87 21 82 56 79 46 15 86 22 53 17 22 Regions Visited 32 Branch Regions 16 Pre-discovered Areas 4 | . . . 1 . . . . . . . . . 1 1 1 . . . . . . . . . . . . . . . . . Known Exits Taken 10 | . . . . 1 . 1 . . . 1 . 1 . . . . 1 1 . . . . . . . . 1 . 1 1 1 . Unknown Exits Taken 17 | 1 1 1 1 . . . . . . . . . 1 1 1 1 . . 1 1 1 1 1 1 1 1 . 1 . . . . Scrap Searched 15 | . . . 1 . . . . . . . . . 3 1 . 4 . 3 3 . . . . . . . . . . . . . Spaces Dug 294 | . 5 . 9 14 . 3 3 5 . . 1 3 8 21 . 23 25 . . . 13 61 1 . . 20 5 16 12 14 27 5 Terrain Destroyed 1361 | . 5 . 28 88 41 30 60 5 99 . 11 3 11 31 . 25 234 37 1 6 104 115 7 2 1 21 6 54 102 116 37 81 Melee 51 | . . . . 4 . 3 3 5 . . 1 3 2 6 . 1 9 . . . . 7 . . . . 1 4 2 . . . Projectile 336 | . 5 . . 16 . . . . 1 . . . 9 25 . 24 35 2 1 6 47 13 7 2 1 21 5 30 23 28 27 8 AOE 974 | . . . 28 68 41 27 57 . 98 . 10 . . . . . 190 35 . . 57 95 . . . . . 20 77 88 10 73 Terrain Rammed . | . . . . . . . . . . . . . . . . . . . . . . . . . . . . . . . . . Walls Destroyed . | . . . . . . . . . . . . . . . . . . . . . . . . . . . . . . . . . Machines Disabled . | . . . . . . . . . . . . . . . . . . . . . . . . . . . . . . . . . Actions | -11 -10 -9 -9 -8 -8 -8 -8 -7 -7 -7 -7 -6 -6 -6 -6 -5 -5 -5 -5 -5 -4 -4 -4 -4 -4 -4 -3 -3 -2 -2 -1 -1 --------- Run | Yrd Mat Mat Min Mat Gar Mat Gar Fac Was Fac DSF Fac Low Low Dat Pro Fac Upp Upp War Pro Fac Ext Cet Arc Hub Res Qua Res Tes Acc Com Total 21508 | 99 316 630 319 606 1174 258 943 496 658 5 182 550 425 811 97 701 1802 545 359 993 834 736 1105 310 333 481 769 1396 767 702 1145 961 Wait 2074 | 1 34 48 . 35 119 35 62 3 23 . 2 10 . 57 . 117 254 20 . 24 2 121 96 15 78 63 83 79 103 19 526 45 Move 15579 | 77 200 444 291 451 813 197 676 426 512 5 156 480 394 675 93 543 1127 453 331 870 706 412 817 243 214 315 575 999 518 521 505 540 Hop . | . . . . . . . . . . . . . . . . . . . . . . . . . . . . . . . . . Pick Up 404 | 8 10 31 . 15 5 5 9 10 11 . 3 6 4 11 . 3 63 14 2 11 9 26 11 8 4 5 17 27 19 19 16 22 Fast Attach 193 | 7 1 2 1 4 5 1 2 4 3 . . 1 1 . 2 . 20 5 7 13 1 17 6 6 7 . 16 25 9 8 6 13 Attach 221 | . 4 4 2 3 . . 8 3 8 . . 2 1 6 . 1 60 5 . 3 5 11 3 6 2 2 9 17 13 8 7 28 Detach 41 | . . 1 . 1 1 . . . 3 . . . . . . . 18 . . . . 3 . 1 . . 2 3 1 2 1 4 Swap 595 | 1 11 21 7 26 22 4 39 24 8 . 5 22 7 4 . 4 63 8 2 30 26 40 20 4 4 32 10 50 32 35 15 19 Drop 446 | . 2 23 . 17 12 6 5 12 13 . 3 4 5 6 2 4 32 15 9 22 5 36 18 15 6 4 28 49 15 22 16 40 Fire 1445 | 5 52 56 10 45 109 7 57 9 77 . 10 20 9 39 . 26 136 6 . 20 60 58 33 12 3 57 25 119 49 68 53 215 Melee 238 | . . . 8 9 4 3 36 5 . . 1 5 4 6 . 3 28 12 8 . . 12 2 . 15 3 4 27 8 . . 35 Ram . | . . . . . . . . . . . . . . . . . . . . . . . . . . . . . . . . . Kick 2 | . 2 . . . . . . . . . . . . . . . . . . . . . . . . . . . . . . . Crush 2 | . . . . . . . . . . . . . . . . . 1 . . . . . . . . . . 1 . . . . Escape Stasis 74 | . . . . . 48 . 24 . . . 2 . . . . . . . . . . . . . . . . . . . . . Rewire 194 | . . . . . 36 . 25 . . . . . . 7 . . . 7 . . 20 . 99 . . . . . . . . . Trap . | . . . . . . . . . . . . . . . . . . . . . . . . . . . . . . . . . Miscellaneous . | . . . . . . . . . . . . . . . . . . . . . . . . . . . . . . . . . Route ------- -11/Scrapyard -10/Materials (discovered 2 exits: *Mat / [*Min]) -9/Materials (discovered 3 exits: [*Min] / [*Sto x2]) -9/Mines (discovered 2 exits: *Mat / [*Zio]) -8/Materials (discovered 2 exits: *Fac / Gar) -8/Garrison (discovered 3 exits: *Mat x3) -8/Materials -8/Garrison (discovered 2 exits: *Fac x2) -7/Factory -7/Waste -7/Factory -7/DSF -6/Factory (discovered 2 exits: *Low x2) -6/Lower Caves -6/Lower Caves (discovered 2 exits: *Fac / *Dat) -6/Data Miner -5/Proximity Caves -5/Factory (discovered 2 exits: *Upp x2) -5/Upper Caves -5/Upper Caves -5/Warlord -4/Proximity Caves -4/Factory (discovered 2 exits: *Res / *Ext) -4/Extension (discovered 2 exits: *Res / *Cet) -4/Cetus (discovered 2 exits: *Res / [*Arc]) -4/Archives (discovered 3 exits: *Res / *Hub x2) -4/Hub_04(d) (discovered 2 exits: *Res x2) -3/Research (discovered 4 exits: [*Res] / Arm / *Qua x2) -3/Quarantine -2/Research -2/Testing -1/Access -1/Command History --------- Turn | Location | Event 2 | -11/Scrapyard | Met Revision 17 5 | -11/Scrapyard | Discovered new exit (range 15) 126 | -11/Scrapyard | Entered Materials 217 | -10/Materials | Discovered new exit (range 16) 317 | -10/Materials | Build established: Mutant 503 | -10/Materials | Core integrity fell below 50% 661 | -10/Materials | Discovered new exit (range 14) 690 | -10/Materials | Entered another Materials area 690 | -9/Materials | Evolved 2 slots: Propulsion x1, Utility x1 1025 | -9/Materials | Discovered new exit (range 11) 1253 | -9/Materials | Discovered new exit (range 10) 1693 | -9/Materials | Discovered new exit (range 13) 1804 | -9/Materials | Entered Mines 1805 | -9/Mines | Learned location of Storage (-9) 2035 | -9/Mines | Build established: Scavenger-Mutant 2168 | -9/Mines | Excavation squad dispatched 2168 | -9/Mines | A large section of the Mines collapsed 2342 | -9/Mines | Learned Materials stockpile data 2359 | -9/Mines | A Derelict revealed a hidden shortcut to a safe place 2390 | -9/Mines | Discovered new exit (range 10) 2402 | -9/Mines | Entered Materials 2402 | -8/Materials | Evolved 2 slots: Propulsion x1, Weapon x1 2777 | -8/Materials | Discovered new exit (range 18) 3092 | -8/Materials | Build established: Tank 3238 | -8/Materials | Garrison activated, responded to threat 3298 | -8/Materials | Identified exit to Garrison 3298 | -8/Materials | Entered Garrison 3380 | -8/Garrison | Triggered checkpoint 3448 | -8/Garrison | Triggered checkpoint 3542 | -8/Garrison | Learned Materials security intel 3556 | -8/Garrison | Garrison Relay disabled 3621 | -8/Garrison | Triggered checkpoint 3622 | -8/Garrison | Triggered checkpoint 3790 | -8/Garrison | Triggered checkpoint 3800 | -8/Garrison | Triggered checkpoint 3870 | -8/Garrison | Triggered checkpoint 4108 | -8/Garrison | Build established: Scavenger-Tank 4203 | -8/Garrison | Garrison Relay disabled 4241 | -8/Garrison | Discovered new exit (range 10) 4358 | -8/Garrison | Garrison Relay disabled 4425 | -8/Garrison | Discovered new exit (range 10) 4512 | -8/Garrison | Garrison Relay disabled 4604 | -8/Garrison | Discovered new exit (range 50) 4604 | -8/Garrison | Discovered new exit (range 15) 4604 | -8/Garrison | Discovered new exit (range 79) 4818 | -8/Garrison | Triggered checkpoint 4867 | -8/Garrison | Garrison Relay disabled 4989 | -8/Garrison | Entered Materials 4989 | -8/Materials | Accompanied by 2 allies 5276 | -8/Materials | Garrison activated, responded to threat 5345 | -8/Materials | Identified exit to Garrison 5345 | -8/Materials | Entered Garrison 5461 | -8/Garrison | Triggered checkpoint 5509 | -8/Garrison | Garrison Relay disabled 5521 | -8/Garrison | Garrison Relay disabled 5610 | -8/Garrison | Triggered checkpoint 5744 | -8/Garrison | Triggered checkpoint 5764 | -8/Garrison | Triggered checkpoint 5891 | -8/Garrison | Triggered checkpoint 5982 | -8/Garrison | Garrison Relay disabled 6205 | -8/Garrison | Discovered new exit (range 10) 6256 | -8/Garrison | Garrison Relay disabled 6265 | -8/Garrison | Triggered checkpoint 6395 | -8/Garrison | Core integrity fell below 50% 6575 | -8/Garrison | Build established: Tank 6663 | -8/Garrison | Discovered new exit (range 13) 6753 | -8/Garrison | Triggered checkpoint 6878 | -8/Garrison | Garrison Relay disabled 6893 | -8/Garrison | Learned Factory security intel 6899 | -8/Garrison | Build established: Mutant 6966 | -8/Garrison | Rescued a captive Derelict 7043 | -8/Garrison | Entered Factory 7043 | -7/Factory | Accompanied by 1 ally 7043 | -7/Factory | Evolved 2 slots: Utility x2 7521 | -7/Factory | Build established: Scavenger-Mutant 7554 | -7/Factory | Discovered new exit (range 5) 7861 | -7/Factory | Sucked down chute 7861 | -7/Factory | Entered Waste 7862 | -7/Waste | Met a frightened Derelict 7874 | -7/Waste | Spotted C-40 Crusher 7880 | -7/Waste | Destroyed C-40 Crusher 7924 | -7/Waste | Spotted C-40 Crusher 7928 | -7/Waste | Spotted C-40 Crusher 7937 | -7/Waste | Destroyed C-40 Crusher 7966 | -7/Waste | Crushed by Compactor (1 part destroyed, 2 dropped) 7969 | -7/Waste | Crushed by Compactor (1 part destroyed, 1 dropped) 7972 | -7/Waste | Destroyed C-40 Crusher 8000 | -7/Waste | Lost 4 parts (2n1u1w) 8087 | -7/Waste | Spotted C-40 Crusher 8093 | -7/Waste | Destroyed C-40 Crusher 8104 | -7/Waste | Spotted C-40 Crusher 8106 | -7/Waste | Warlord forces began an assault 8116 | -7/Waste | Destroyed C-40 Crusher 8191 | -7/Waste | Discovered new exit (range 15) 8232 | -7/Waste | Spotted C-40 Crusher 8239 | -7/Waste | Allies destroyed C-40 Crusher 8257 | -7/Waste | Build established: Scavenger-Tank 8291 | -7/Waste | Found Damper Plating 9017 | -7/Waste | Murdered 3 allies 9170 | -7/Waste | Murdered 9 allies 9262 | -7/Waste | Entered Factory 9262 | -7/Factory | Accompanied by 4 allies 9275 | -7/Factory | Identified exit to DSF 9275 | -7/Factory | Entered DSF 9275 | -7/DSF | Accompanied by 4 allies 9293 | -7/DSF | Additional patrols routed to DSF 9320 | -7/DSF | Discovered new exit (range 15) 9640 | -7/DSF | Sterilization system engaged 9660 | -7/DSF | Ambient heat levels rising (+10) 9675 | -7/DSF | Ambient heat levels rising (+10) 9690 | -7/DSF | Ambient heat levels rising (+10) 9705 | -7/DSF | Ambient heat levels rising (+10) 9705 | -7/DSF | Entered Factory 9705 | -6/Factory | Accompanied by 2 allies 9705 | -6/Factory | Evolved 2 slots: Propulsion x1, Utility x1 10154 | -6/Factory | Garrison activated, responded to threat 10332 | -6/Factory | Identified exit to Lower Caves 10611 | -6/Factory | Entered Lower Caves 10617 | -6/Lower Caves | Met a Warlord Commander 10618 | -6/Lower Caves | Learned location of Warlord (-5) 10619 | -6/Lower Caves | Warlord Commander delivered Encrypted Comm Array 10619 | -6/Lower Caves | Found Encrypted Comm Array 10705 | -6/Lower Caves | Attracted the attention of an 0b10 outpost 11152 | -6/Lower Caves | Discovered new exit (range 10) 11302 | -6/Lower Caves | Entered another Lower Caves area 11385 | -6/Lower Caves | Discovered new exit (range 12) 11522 | -6/Lower Caves | Attracted the attention of an 0b10 outpost 11610 | -6/Lower Caves | Lost 3 parts (1n1u1w) 11616 | -6/Lower Caves | Destroyed 11 combat bots 11921 | -6/Lower Caves | Learned location of Extension (-4) 12200 | -6/Lower Caves | Build established: Scavenger-Mutant 12227 | -6/Lower Caves | Discovered new exit (range 5) 12595 | -6/Lower Caves | Entered Data Miner 12597 | -6/Data Miner | Discovered new exit (range 6) 12658 | -6/Data Miner | Met Data Miner 12687 | -6/Data Miner | Learned location of Section 7 (-3) 12687 | -6/Data Miner | Acquired the access code to Warlord's prototype stash 12715 | -6/Data Miner | Received God Mode back door access code from Data Miner 12750 | -6/Data Miner | Entered Proximity Caves 12919 | -5/Proximity Caves | Learned Factory security intel 12947 | -5/Proximity Caves | Spotted B-75 Beast 13171 | -5/Proximity Caves | P-70 Sage assimilated allied B7-0VO(r) 13437 | -5/Proximity Caves | Discovered new exit (range 6) 13489 | -5/Proximity Caves | Build established: Scavenger-Tank 13813 | -5/Proximity Caves | Entered Factory 13813 | -5/Factory | Evolved 2 slots: Utility x2 13869 | -5/Factory | Repaired Arm. Treads 14004 | -5/Factory | Fabricated Adv. Medium Treads? 14070 | -5/Factory | Fabricated Gatling Laser (x2) 14121 | -5/Factory | Fabricated Gatling Laser (x2) 14468 | -5/Factory | Cargo convoy interrupted 14496 | -5/Factory | System corruption reached 10% 14526 | -5/Factory | Destroyed 12 combat bots 14554 | -5/Factory | Lost 6 parts (3n3u) 15054 | -5/Factory | Incoming investigation squad redirected 15098 | -5/Factory | Joined by Warlord Ranger squad 15218 | -5/Factory | Lost 5 parts (1p1n2u1w) 15268 | -5/Factory | Lost 3 parts (3n) 15284 | -5/Factory | Garrison activated, responded to threat 15364 | -5/Factory | Destroyed 9 combat bots 15369 | -5/Factory | Lost 9 parts (1p5n2u1w) 15468 | -5/Factory | Joined by Warlord Infantry squad 15511 | -5/Factory | Incoming investigation squad redirected 15540 | -5/Factory | Incoming assault squad redirected 15554 | -5/Factory | Destroyed 7 combat bots 15564 | -5/Factory | Lost 4 allies 15648 | -5/Factory | Found Prototype Launcher 15648 | -5/Factory | Identified Scatter Rocket Array 15654 | -5/Factory | Found Scatter Rocket Array 15656 | -5/Factory | Found Scatter Rocket Array 15680 | -5/Factory | Incoming investigation squad redirected 15710 | -5/Factory | Joined by Warlord Geek squad 15716 | -5/Factory | Lost 4 parts (2n2u) 15748 | -5/Factory | Core integrity fell below 50% 15801 | -5/Factory | Lost 3 parts (2n1w) 15874 | -5/Factory | Allied Derelicts emerged from ambush trap array 15913 | -5/Factory | First assault squad dispatched 15956 | -5/Factory | Lost 3 allies 15981 | -5/Factory | Lost 4 parts (1p1n2u) 16042 | -5/Factory | Build established: Scavenger-Mutant 16232 | -5/Factory | Incoming assault squad redirected 16233 | -5/Factory | Incoming assault squad redirected 16233 | -5/Factory | Identified exit to Upper Caves 16274 | -5/Factory | Joined by Warlord Dakka squad 16415 | -5/Factory | Joined by Warlord Pyro squad 16436 | -5/Factory | Entered Upper Caves 16438 | -5/Upper Caves | Attracted the attention of an 0b10 outpost 16448 | -5/Upper Caves | Lost 3 allies 16470 | -5/Upper Caves | Lost 5 parts (1p2n2u) 16475 | -5/Upper Caves | Destroyed 7 combat bots 16768 | -5/Upper Caves | Attracted the attention of an 0b10 checkpoint 16828 | -5/Upper Caves | Found DCF Scrap (14 items) 17087 | -5/Upper Caves | Discovered new exit (range 7) 17096 | -5/Upper Caves | Identified exit to Upper Caves 17104 | -5/Upper Caves | Entered another Upper Caves area 17104 | -5/Upper Caves | Accompanied by 1 ally 17189 | -5/Upper Caves | Entered an active Warlord outpost 17235 | -5/Upper Caves | Learned Factory stockpile data 17235 | -5/Upper Caves | Learned 8 Research zone layouts 17495 | -5/Upper Caves | Discovered new exit (range 14) 17552 | -5/Upper Caves | Entered Warlord 17552 | -5/Warlord | Accompanied by 1 ally 17595 | -5/Warlord | System corruption cleaned by Quarantine Array 17719 | -5/Warlord | Opened Warlord's prototype stash 17730 | -5/Warlord | Found Prototype Processor 17730 | -5/Warlord | Identified Exp. Armor Integrity Analyzer 17737 | -5/Warlord | Found Prototype Device 17737 | -5/Warlord | Identified System Purifier 17748 | -5/Warlord | Found Prototype Reactor 18214 | -5/Warlord | Warlord's base attacked by MAIN.C 18241 | -5/Warlord | Found Prototype Piercing Weapon 18242 | -5/Warlord | Identified Vortex Lance 18247 | -5/Warlord | Found Vortex Lance 18341 | -5/Warlord | Met Warlord 18551 | -5/Warlord | Build established: Commander-Gunner 18564 | -5/Warlord | Warlord forces counterattacked 18590 | -5/Warlord | Spotted Executioner 18595 | -5/Warlord | Allies destroyed Executioner 18614 | -5/Warlord | Spotted Striker 18618 | -5/Warlord | Spotted Executioner 18627 | -5/Warlord | Found Prototype Device 18643 | -5/Warlord | Spotted Executioner 18650 | -5/Warlord | Destroyed Executioner 18661 | -5/Warlord | Spotted Executioner 18679 | -5/Warlord | Allies destroyed Executioner 18691 | -5/Warlord | Found Prototype Processor 18691 | -5/Warlord | Identified Exp. Core Analyzer 18701 | -5/Warlord | Found Prototype Processor 18701 | -5/Warlord | Identified Exp. Targeting Computer 18703 | -5/Warlord | Identified Adv. Kinecellerator 18708 | -5/Warlord | Spotted Executioner 18711 | -5/Warlord | Lost 6 allies 18728 | -5/Warlord | Discovered new exit (range 12) 18728 | -5/Warlord | Spotted Executioner 18743 | -5/Warlord | Spotted Striker 18790 | -5/Warlord | Lost 3 parts (3n) 18807 | -5/Warlord | Lost 18 allies 18812 | -5/Warlord | Entered Proximity Caves 18929 | -4/Proximity Caves | Ambushed by research squad 18978 | -4/Proximity Caves | Build established: Scavenger-Gunner 19183 | -4/Proximity Caves | Attracted the attention of an 0b10 outpost 19288 | -4/Proximity Caves | Core integrity fell below 20% 19332 | -4/Proximity Caves | Destroyed 7 combat bots 19676 | -4/Proximity Caves | Build established: Scavenger-Tank 19764 | -4/Proximity Caves | Learned Research terminal intel 20154 | -4/Proximity Caves | Build established: Scavenger-Gunner 20391 | -4/Proximity Caves | Attracted the attention of an 0b10 checkpoint 20522 | -4/Proximity Caves | Discovered new exit (range 5) 20568 | -4/Proximity Caves | Entered Factory 20568 | -4/Factory | Evolved 2 slots: Power x1, Propulsion x1 20676 | -4/Factory | Fabricated Adv. Medium Treads (x2) 20701 | -4/Factory | Identified Vortex Chain Reactor 20733 | -4/Factory | Spotted B-86 Titan 20773 | -4/Factory | Destroyed B-86 Titan 20865 | -4/Factory | Fabricated Nova Cannon (x2) 20887 | -4/Factory | Found Quantum Capacitor 21009 | -4/Factory | Discovered new exit (range 10) 21011 | -4/Factory | Destroyed 7 combat bots 21364 | -4/Factory | Spotted B-86 Titan 21415 | -4/Factory | Destroyed B-86 Titan 21440 | -4/Factory | Lost 6 parts (4n1u1w) 21489 | -4/Factory | Build established: Scavenger-Mutant 21717 | -4/Factory | Discovered new exit (range 13) 21736 | -4/Factory | Entered Extension 22050 | -4/Extension | Rescued A7 22129 | -4/Extension | Rescued a captive Derelict 22131 | -4/Extension | Rescued a captive Derelict 22349 | -4/Extension | Build established: Scavenger-Tank 22428 | -4/Extension | Rescued a captive Derelict 22431 | -4/Extension | Rescued a captive Derelict 22433 | -4/Extension | Spotted B-86 Titan 22450 | -4/Extension | Spotted B-86 Titan 22461 | -4/Extension | Allies destroyed B-86 Titan 22477 | -4/Extension | Destroyed B-86 Titan 22668 | -4/Extension | Incoming investigation squad redirected 23263 | -4/Extension | Build established: Commander-Tank 23295 | -4/Extension | Discovered new exit (range 10) 23297 | -4/Extension | Discovered new exit (range 6) 23316 | -4/Extension | Found Prototype Processor 23316 | -4/Extension | Identified Exp. Signal Interpreter 23355 | -4/Extension | Entered Cetus 23355 | -4/Cetus | Accompanied by 14 allies (A7) 23360 | -4/Cetus | Acquired a Cetus Manufacturing Module code from A7 23374 | -4/Cetus | Spotted Cetus Guard 23374 | -4/Cetus | Spotted Cetus Guard 23385 | -4/Cetus | Allies destroyed Cetus Guard 23385 | -4/Cetus | Spotted Cetus Guard 23388 | -4/Cetus | Spotted Cetus Guard 23389 | -4/Cetus | Extracted ID and sensor layout for unrecognized location from A7's data core 23397 | -4/Cetus | Destroyed Cetus Guard 23398 | -4/Cetus | Allies destroyed Cetus Guard 23406 | -4/Cetus | Allies destroyed Cetus Guard 23431 | -4/Cetus | Lost 4 allies 23456 | -4/Cetus | System corruption reached 10% 23504 | -4/Cetus | Started Cetus Manufacturing Module 23523 | -4/Cetus | Discovered new exit (range 15) 23529 | -4/Cetus | Manufactured an Enhanced Grunt 23550 | -4/Cetus | Spotted Cetus Guard 23550 | -4/Cetus | Spotted Cetus Guard 23552 | -4/Cetus | Destroyed Cetus Guard 23552 | -4/Cetus | Spotted Cetus Guard 23554 | -4/Cetus | Manufactured an Enhanced Grunt 23555 | -4/Cetus | Destroyed Cetus Guard 23555 | -4/Cetus | Destroyed Cetus Guard 23561 | -4/Cetus | Destroyed Cetus Guard 23574 | -4/Cetus | Discovered new exit (range 16) 23579 | -4/Cetus | Manufactured an Enhanced Grunt 23585 | -4/Cetus | Met Revision 17 23604 | -4/Cetus | Manufactured an Enhanced Grunt 23629 | -4/Cetus | Manufactured an Enhanced Grunt 23829 | -4/Cetus | Entered Archives 23829 | -4/Archives | Accompanied by 15 allies 23908 | -4/Archives | Discovered new exit (range 15) 23960 | -4/Archives | Discovered new exit (range 16) 24055 | -4/Archives | Discovered new exit (range 15) 24208 | -4/Archives | Build established: Commander-Mutant 24315 | -4/Archives | Entered Hub_04(d) 24315 | -4/Hub_04(d) | Accompanied by 13 allies 24383 | -4/Hub_04(d) | Discovered new exit (range 14) 24573 | -4/Hub_04(d) | Lost 13 allies 24605 | -4/Hub_04(d) | Destroyed 7 combat bots 24719 | -4/Hub_04(d) | Imp. Hacking Suite fried by hacking feedback 24764 | -4/Hub_04(d) | Build established: Scavenger-Tank 25010 | -4/Hub_04(d) | Discovered new exit (range 3) 25089 | -4/Hub_04(d) | Network Hub disabled 25096 | -4/Hub_04(d) | Spotted Lightning 25097 | -4/Hub_04(d) | Spotted Lightning 25108 | -4/Hub_04(d) | Entered Research 25108 | -3/Research | Evolved 2 slots: Utility x2 25109 | -3/Research | Identified exit to Armory 25110 | -3/Research | Identified exit to Quarantine 25111 | -3/Research | Loaded intel: 24 terminal locations 25302 | -3/Research | Discovered exit to Quarantine (range 8) 25308 | -3/Research | Revision forces began assault on 0b10 25363 | -3/Research | Lost 3 parts (2n1u) 25412 | -3/Research | Met up with Revision 17++ 25620 | -3/Research | Discovered new exit (range 14) 25669 | -3/Research | Build established: Scavenger-Gunner 25755 | -3/Research | Found Prototype Device 25755 | -3/Research | Identified Adv. EM Shield 25808 | -3/Research | Research terminal network offline 25992 | -3/Research | Fabricated Quantum Capacitor (x2) 26124 | -3/Research | Lost 4 allies 26213 | -3/Research | Entered Quarantine 26252 | -3/Quarantine | Found Alien Artifact 26313 | -3/Quarantine | Found Alien Artifact 26313 | -3/Quarantine | Identified Phase Redirector 26765 | -3/Quarantine | Found Alien Slashing Weapon 26765 | -3/Quarantine | Identified Sigix Broadsword 26882 | -3/Quarantine | Cryocooling Duct disabled 26897 | -3/Quarantine | Ambient heat levels rising (+20) 26897 | -3/Quarantine | Non-combat units ordered to evacuate 26907 | -3/Quarantine | Found Gamma Bomb Array 27002 | -3/Quarantine | Found Alien Artifact 27054 | -3/Quarantine | Build established: Scavenger-Mutant 27064 | -3/Quarantine | Found Alien Artifact 27223 | -3/Quarantine | Found Alien Impact Weapon 27247 | -3/Quarantine | Found Alien Artifact 27247 | -3/Quarantine | Identified Terrabomb 27247 | -3/Quarantine | Used Terrabomb 27352 | -3/Quarantine | System corruption reached 10% 27419 | -3/Quarantine | Destroyed 9 combat bots 27707 | -3/Quarantine | Discovered new exit (range 13) 27816 | -3/Quarantine | Spotted Alpha 7 27820 | -3/Quarantine | Identified Core Stripper 27839 | -3/Quarantine | Destroyed Alpha 7 27861 | -3/Quarantine | Found Exp. Targeting Computer 27864 | -3/Quarantine | Found Prototype Device 27864 | -3/Quarantine | Identified Exp. ECM Suite 27886 | -3/Quarantine | Found Alien Launcher 27886 | -3/Quarantine | Identified Sigix Terminator 27902 | -3/Quarantine | Found Prototype Ballistic Gun 27902 | -3/Quarantine | Identified Multirail 27965 | -3/Quarantine | Identified Phase Armor 28007 | -3/Quarantine | Spotted Fortress 28016 | -3/Quarantine | Destroyed Fortress 28035 | -3/Quarantine | Found Prototype Protection 28035 | -3/Quarantine | Identified Centrium Heavy Armor Plating 28044 | -3/Quarantine | Found Vortex Chain Reactor 28047 | -3/Quarantine | Found Prototype Device 28047 | -3/Quarantine | Identified Exp. EM Shield 28050 | -3/Quarantine | Found Prototype Device 28050 | -3/Quarantine | Identified Exp. Force Field 28053 | -3/Quarantine | Found Prototype Device 28053 | -3/Quarantine | Identified Thermal Barrier 28096 | -3/Quarantine | Found Vortex Chain Reactor 28129 | -3/Quarantine | Build established: Mutant 28219 | -3/Quarantine | Entered Research 28219 | -2/Research | Warlord forces began assault on 0b10 28219 | -2/Research | Evolved 2 slots: Utility x2 28244 | -2/Research | Distinguished unit "Grunt Murderers" dispatched to help 28244 | -2/Research | Distinguished unit "Magnificent Bastards" dispatched to help 28297 | -2/Research | Lost 4 allies 28308 | -2/Research | Discovered new exit (range 11) 28329 | -2/Research | Research machine network offline 28512 | -2/Research | Spotted B-90 Cyclops 28519 | -2/Research | Spotted Executioner 28522 | -2/Research | Spotted Executioner 28528 | -2/Research | Destroyed Executioner 28532 | -2/Research | Destroyed Executioner 28553 | -2/Research | Warlord destroyed during the assault 28553 | -2/Research | Destroyed 8 combat bots 28678 | -2/Research | Found Unknown Launcher 28678 | -2/Research | Identified Fusion Bomb Launcher 28820 | -2/Research | Found Prototype Hackware 28820 | -2/Research | Identified Exp. Hacking Suite 28939 | -2/Research | Spotted Striker 28978 | -2/Research | Build established: Tank 29117 | -2/Research | Spotted Striker 29128 | -2/Research | Destroyed Striker 29135 | -2/Research | Spotted Executioner 29138 | -2/Research | Destroyed Executioner 29169 | -2/Research | Found Exp. Core Analyzer 29236 | -2/Research | Spotted Executioner 29249 | -2/Research | Destroyed Executioner 29251 | -2/Research | Destroyed Striker 29272 | -2/Research | Destroyed 9 combat bots 29294 | -2/Research | Spotted Executioner 29301 | -2/Research | Spotted Executioner 29319 | -2/Research | Destroyed Executioner 29337 | -2/Research | Destroyed Executioner 29364 | -2/Research | Lost 4 parts (1p1n2u) 29380 | -2/Research | Spotted O9-OWW(B) 29384 | -2/Research | Spotted DU-0AK(B) 29385 | -2/Research | Spotted Executioner 29393 | -2/Research | Spotted Striker 29414 | -2/Research | Identified exit to Testing 29415 | -2/Research | Entered Testing 29416 | -2/Testing | Identified Subatomic Replicator 29416 | -2/Testing | Used Subatomic Replicator to replicate Hds. Centrium Heavy Treads 29420 | -2/Testing | Lost 3 allies 29437 | -2/Testing | Found Prototype Energy Gun 29437 | -2/Testing | Identified Hyp. EM Gauss Rifle 29501 | -2/Testing | Spotted PP-SIYZCSHY0T 29545 | -2/Testing | Found Gamma Bomb Array 29708 | -2/Testing | Found Fusion Bomb Launcher 29711 | -2/Testing | Found Fusion Bomb Launcher 29918 | -2/Testing | Found Prototype Energy Cannon 29918 | -2/Testing | Identified Null Cannon 29921 | -2/Testing | Discovered new exit (range 8) 29978 | -2/Testing | Build established: Scavenger-Skirmisher 30075 | -2/Testing | Core integrity fell below 50% 30168 | -2/Testing | Found Prototype Ballistic Cannon 30240 | -2/Testing | System corruption reached 10% 30251 | -2/Testing | Found Quantum Capacitor 30415 | -2/Testing | First assault squad dispatched 30443 | -2/Testing | Incoming assault squad redirected 30462 | -2/Testing | Core integrity fell below 20% 30496 | -2/Testing | Destroyed 8 combat bots 30506 | -2/Testing | Lost 3 parts (3u) 30534 | -2/Testing | Identified exit to Access 30536 | -2/Testing | Entered Access 30536 | -1/Access | Evolved 2 slots: Propulsion x1, Utility x1 30558 | -1/Access | Found Exp. Signal Interpreter 30821 | -1/Access | Build established: Scavenger-Gunner 30902 | -1/Access | Identified exit to Command 31013 | -1/Access | Found Quantum Capacitor 31967 | -1/Access | Entered Command 32295 | -1/Command | Found Gamma Bomb Array 32580 | -1/Command | System corruption reached 10% 32623 | -1/Command | Found Hvy. Reactive Plating 32658 | -1/Command | Spotted Combat Programmer 32659 | -1/Command | Spotted Combat Programmer 32659 | -1/Command | Spotted M Guard 32664 | -1/Command | Spotted M Guard 32680 | -1/Command | Destroyed Combat Programmer 32690 | -1/Command | Destroyed Combat Programmer 32706 | -1/Command | Destroyed M Guard 32718 | -1/Command | Destroyed M Guard 32718 | -1/Command | All MAIN.C guards destroyed 32746 | -1/Command | Lost 4 parts (1p2n1w) 32806 | -1/Command | Found Unknown Protection 32806 | -1/Command | Identified Hvy. Reflective Plating 33043 | -1/Command | Met MAIN.C 33056 | -1/Command | 0b10 Conduit disabled 33088 | -1/Command | Destroyed MAIN.C Shell 33091 | -1/Command | MAIN.C activated Command garrisons 33146 | -1/Command | Identified Perforator 33182 | -1/Command | Core integrity fell below 50% 33205 | -1/Command | Core integrity fell below 20% 33210 | -1/Command | Destroyed by MAIN.C with Improved Heavy Machine Gun Last Messages --------------- 33197_ C-45 Heavy ARC bursts open, deploying its payload. 33197_ S-43 Plague unfolds itself. 33197_ Knocked back. 33198_ 0b10 Conduit collapses. 33200_ System corrupted: Perforator jammed. 33200_ Perforator destroyed. 33200_ Imp. Weapon Cycler destroyed. 33200_ Graphene Brace destroyed. 33200_ Knocked back. 33201_ 0b10 Conduit collapses. 33201_ Imp. Targeting Computer destroyed. 33202_ 0b10 Conduit collapses. 33203_ Dropped Adv. Matter Compressor. 33203_ Knocked back. 33204_ 0b10 Conduit collapses. 33205_ Extracted 5 energy. 33206_ Adv. Coolant Injector destroyed. 33206_ Knocked back. 33208_ 0b10 Conduit collapses. Map ----- +----------------------------------------------------+ | ?????????????????????????????????????????????????? | | ?????????????????????????????????????????????????? | | ?????????????????????????????????????????????????? | | ?????????????????????????????????????????????????? | | ?????????????????????????????????????????????????? | | ?????????????????????????????????????????????????? | | ?????????????????????????????????????????????????? | | ?????????????????????????????????????????????????? | | ?????????????????????????????????????????????????? | | ?????????????????????????????????????????????????? | | ?????????????????????????????????????????????????? | | ?????????????????????????????????????????????????? | | ?????????????????????????????????????????????????? | | ?????????????????????????????????????????????????? | | ?????????????????????????????????????????????????? | | ?????????????????????????????????????????????????? | | ?????????????????????#####################???????? | | ?????????????????????"""""" """" #???????? | | ???????????????????#"" %% "" #???????? | | ???????????????????#"""" % %"" ######### | | ???????????????????#"""" "" " | | ???????????????????#" % M + | | ???????????????????#"" "" "+% | | ???????????????????#"" " s ######### | | ???????????????????# " %%% s #???????? | | ???????????????????# " @ % %% s #???????? | | ???????????????????# " ]!] s #???????? | | ???????????????????#"""""" % ! % s #???????? | | ???????????????????#"" %% % #???????? | | ???????????????????# % #???????? | | ???????????????????# ! #???????? | | ???????????????????# #???????? | | ???????????????????" " % #???????? | | ???????????????????" """ #???????? | | ???????????????????" " #???????? | | ???????????????????# """""" "" #???????? | | ???????????????????# " """ """"#???????? | | ???????????????????# "" " " #???????? | | ???????????????????###?###################???????? | | ?????????????????????????????????????????????????? | | ?????????????????????????????????????????????????? | | ?????????????????????????????????????????????????? | | ?????????????????????????????????????????????????? | | ?????????????????????????????????????????????????? | | ?????????????????????????????????????????????????? | | ?????????????????????????????????????????????????? | | ?????????????????????????????????????????????????? | | ?????????????????????????????????????????????????? | | ?????????????????????????????????????????????????? | | ?????????????????????????????????????????????????? | +----------------------------------------------------+ Best States ------------- Heat Dissipation 166 Coolant Potential 100 Energy Generation 55 Energy Capacity 1100 Matter Stores 421 Matter Capacity 700 Sight Range 23 Robot Scan Range 16 Terrain Scan Range 24 Terrain Scan Density 210 Base Temperature (-) 200 EM Shielding 4 Corruption Containment 12 Armor Coverage 1650 Resistance: KI 40 Resistance: TH 10 Resistance: EM 50 Core Shielding 30 Weapon Cycling 20 Melee Speed Boost 40 Evasion (%) 55 Targeting Accuracy 20 Target Analysis 6 Core Analysis 8 Recoil Reduction 7 Matter Filtering 30 Particle Charging 25 Kinecelleration 50 Offensive Hacking 16 Authchip Count 4 Item Schematics ----------------- Huge Storage Unit | -10/Materials | Hacked Mni. Grenade Launcher | -8/Materials | Scanalyzed Arm. Treads | -7/Factory | Scanalyzed Gatling Laser | -7/Factory | Scanalyzed Combat Drone Bay | -6/Data Miner | Free Lgt. Regenerative Plating | -6/Data Miner | Free Cld. Nuclear Pulse Thruster | -6/Data Miner | Free Adv. EM Disruption Field | -6/Data Miner | Free Enh. Coil Gun | -6/Data Miner | Free Adv. Medium Treads | -6/Data Miner | Free Imp. Remote Force Field | -6/Data Miner | Free Adv. Concussive RPG | -6/Data Miner | Free Adv. Trap Extractor | -6/Data Miner | Free Adv. Hardlight Generator | -6/Data Miner | Free Quantum Rifle | -6/Data Miner | Free Com. HERF Cannon | -6/Data Miner | Free Quantum Capacitor | -4/Extension | Hacked Imp. Weapon Cycler | -4/Extension | Hacked Adv. Weapon Cycler | -3/Quarantine | Hacked Centrium Heavy Treads | -3/Quarantine | Scanalyzed Exp. Power Amplifier | -2/Testing | Archive Exp. Myomer Leg | -2/Testing | Archive Imp. Diametric Drive | -2/Testing | Archive Imp. Matter Compressor | -2/Testing | Archive Robot Schematics ------------------ G-50 Soldier | -6/Data Miner | Free S-27 Virus | -6/Data Miner | Free B-48 Gladiator | -6/Data Miner | Free C-65 Expert | -2/Testing | Archive A-27 Freighter | -2/Testing | Archive K-01 Serf | -2/Testing | Archive Fabricated ------------ Adv. Medium Treads | x2 | -5/Factory | Authchip Gatling Laser | x2 | -5/Factory | Authchip Gatling Laser | x2 | -5/Factory | Authchip Adv. Medium Treads | x2 | -4/Factory | Authchip Nova Cannon | x2 | -4/Factory | Preloaded Quantum Capacitor | x2 | -3/Research Repaired ---------- Arm. Treads | 3% | -5/Factory Studied --------- Mni. Grenade Launcher | -8/Materials | Hacked Gatling Laser | -7/Factory | Hacked Mass Driver | -5/Factory | Hacked Matter Neutralizer | -3/Quarantine | Hacked Enh. Nova Cannon | -2/Testing | Hacked Nova Cannon | -2/Testing | Hacked Quantum Reactor | -1/Access | Hacked Alien Tech Used ----------------- Phase Redirector Sigix Broadsword Terrabomb Core Stripper Sigix Terminator Phase Armor Subatomic Replicator Achievements -------------- Corridor Of Doom Hot Stuff Not Today, Chutes Pyromaniac Challenges ------------ None Game ------ Seed HelicalMiniCoupler Manual? 0 Play Time 11:45:14 Cumulative 269.4 hours Start 2026.01.10 @ 22:48:46 End 2026.01.13 @ 11:32:13 Sessions 10 Manual Loads 0 Difficulty Rogue Special Mode None Game No. 74 Rogue 74 Adventurer 0 Explorer 0 Win Type - Total 3 Types 2/0/0/1/0/0/0/0/0/0 Lore% 68 Gallery% 66 Achievement% 53 Wizard Run 0 Options --------- Layout 1 ASCII 0 Keyboard 0 Movement Mouse Keybinds 0 Fullscreen 1 Font 32/SmallcapsGlow Map View 50x35 Zoom Use 0% Tactical HUD 1 Map Filters NONE Filters NONE Steam 1 RUN: a5167eac-9529-4a59-91fd-2396e97ad447